Workbook

Sheet Pacolet
A2: Income Statement - Trailing 12
A3: Pacolet
A4: Cash Basis
A5: Aug 2024 - Aug 2025
A7: Account | B7: Account Name | C7: Aug 2024 | D7: Sep 2024 | E7: Oct 2024 | F7: Nov 2024 | G7: Dec 2024 | H7: Jan 2025 | I7: Feb 2025 | J7: Mar 2025 | K7: Apr 2025 | L7: May 2025 | M7: Jun 2025 | N7: Jul 2025 | O7: Aug 2025 | P7: Total | R7: Income Statement: GL Account Type | S7: Income Statement: Property | T7: Income Statement: Property Look-Up Code | U7: Income Statement: Unit Count | V7: Income Statement: 0 | W7: Income Statement: 1 | X7: Income Statement: 2 | Y7: Income Statement: 3 | Z7: Income Statement: 4 | AA7: Income Statement: 5 | AB7: Income Statement: 6 | AC7: Income Statement: 7 | AD7: Income Statement: 8 | AE7: Income Statement: 9 | AF7: Income Statement: 10 | AG7: Income Statement: 11 | AH7: Income Statement: 31 | AI7: Income Statement: 41 | AJ7: Income Statement: Month 1 Change Sign | AK7: Income Statement: Month 2 Change Sign | AL7: Income Statement: Month 3 Change Sign | AM7: Income Statement: Month 4 Change Sign | AN7: Income Statement: Month 5 Change Sign | AO7: Income Statement: Month 6 Change Sign | AP7: Income Statement: Month 7 Change Sign | AQ7: Income Statement: 51 | AR7: Income Statement: Month 8 Change Sign | AS7: Income Statement: Month 9 Change Sign | AT7: Income Statement: Month 10 Change Sign | AU7: Income Statement: Month 11 Change Sign | AV7: Income Statement: Month 12 Change Sign | AW7: Income Statement: 56 | AX7: Income Statement: Month 13 Change Sign | AY7: Income Statement: Total Change Sign
A8: Income
A9: Rental Income
A10: 5120-0000 | B10: Market Rent | C10: 21419.6 | D10: 21151 | E10: 18349.28 | F10: 19478.55 | G10: 22638.52 | H10: 18986.95 | I10: 23340.07 | J10: 21141.41 | K10: 20719.02 | L10: 25681.15 | M10: 22563.75 | N10: 23707.35 | O10: 19951.89 | P10: 279128.54 | R10: 4 | S10: Pacolet | T10: 1226991 | V10: 19060 | W10: Pacolet | X10: 1226991 | Y10: Net Income|Net Operating Income|Income|Rental Income | Z10: Net Income|Net Operating Income|Income|Rental Income | AA10: 00000|00000|00000|00000 | AB10: Market Rent | AC10: 5120-0000 | AD10: 1 | AE10: 2567068 | AF10: 0 | AG10: 4|4|4|4 | AH10: 1 | AI10: 1 | AJ10: =IF(5 = R10, C10 * -1, C10) -> 21419.6 | AK10: =IF(5 = R10, D10 * -1, D10) -> 21151 | AL10: =IF(5 = R10, E10 * -1, E10) -> 18349.28 | AM10: =IF(5 = R10, F10 * -1, F10) -> 19478.55 | AN10: =IF(5 = R10, G10 * -1, G10) -> 22638.52 | AO10: =IF(5 = R10, H10 * -1, H10) -> 18986.95 | AP10: =IF(5 = R10, I10 * -1, I10) -> 23340.07 | AQ10: 21141.41 | AR10: =IF(5 = R10, J10 * -1, J10) -> 21141.41 | AS10: =IF(5 = R10, K10 * -1, K10) -> 20719.02 | AT10: =IF(5 = R10, L10 * -1, L10) -> 25681.15 | AU10: =IF(5 = R10, M10 * -1, M10) -> 22563.75 | AV10: =IF(5 = R10, N10 * -1, N10) -> 23707.35 | AW10: 19951.89 | AX10: =IF(5 = R10, O10 * -1, O10) -> 19951.89 | AY10: =IF(5 = R10, P10 * -1, P10) -> 279128.54
B11: Rental Income | C11: =IF(5 = R11, AJ11 * -1, AJ11) -> 21419.6 | D11: =IF(5 = R11, AK11 * -1, AK11) -> 21151 | E11: =IF(5 = R11, AL11 * -1, AL11) -> 18349.28 | F11: =IF(5 = R11, AM11 * -1, AM11) -> 19478.55 | G11: =IF(5 = R11, AN11 * -1, AN11) -> 22638.52 | H11: =IF(5 = R11, AO11 * -1, AO11) -> 18986.95 | I11: =IF(5 = R11, AP11 * -1, AP11) -> 23340.07 | J11: =IF(5 = R11, AR11 * -1, AR11) -> 21141.41 | K11: =IF(5 = R11, AS11 * -1, AS11) -> 20719.02 | L11: =IF(5 = R11, AT11 * -1, AT11) -> 25681.15 | M11: =IF(5 = R11, AU11 * -1, AU11) -> 22563.75 | N11: =IF(5 = R11, AV11 * -1, AV11) -> 23707.35 | O11: =IF(5 = R11, AX11 * -1, AX11) -> 19951.89 | P11: =IF(5 = R11, AY11 * -1, AY11) -> 279128.54 | R11: 4 | S11: =S10 -> Pacolet | T11: =T10 -> 1226991 | U11: =U10 -> 0 | AJ11: =SUM(AJ10:AJ10) -> 21419.6 | AK11: 21151 | AL11: 18349.28 | AM11: 19478.55 | AN11: 22638.52 | AO11: 18986.95 | AP11: 23340.07 | AR11: =SUM(AR10:AR10) -> 21141.41 | AS11: =SUM(AS10:AS10) -> 20719.02 | AT11: =SUM(AT10:AT10) -> 25681.15 | AU11: =SUM(AU10:AU10) -> 22563.75 | AV11: =SUM(AV10:AV10) -> 23707.35 | AX11: =SUM(AX10:AX10) -> 19951.89 | AY11: =SUM(AY10:AY10) -> 279128.54
A13: Other Rental Income
A14: 5900-1000 | B14: Write-off Bad Debt | C14: 0 | D14: 0 | E14: 0 | F14: 0 | G14: 0 | H14: 0 | I14: 0 | J14: 0 | K14: 0 | L14: 1176 | M14: 0 | N14: 0 | O14: 0 | P14: 1176 | R14: 4 | S14: Pacolet | T14: 1226991 | V14: 19060 | W14: Pacolet | X14: 1226991 | Y14: Net Income|Net Operating Income|Income|Other Rental Income | Z14: Net Income|Net Operating Income|Income|Other Rental Income | AA14: 00000|00000|00000|00001 | AB14: Write-off Bad Debt | AC14: 5900-1000 | AD14: 1 | AE14: 2569662 | AF14: 3 | AG14: 4|4|4|4 | AH14: 0 | AI14: 0 | AJ14: =IF(5 = R14, C14 * -1, C14) -> 0 | AK14: =IF(5 = R14, D14 * -1, D14) -> 0 | AL14: =IF(5 = R14, E14 * -1, E14) -> 0 | AM14: =IF(5 = R14, F14 * -1, F14) -> 0 | AN14: =IF(5 = R14, G14 * -1, G14) -> 0 | AO14: =IF(5 = R14, H14 * -1, H14) -> 0 | AP14: =IF(5 = R14, I14 * -1, I14) -> 0 | AQ14: 0 | AR14: =IF(5 = R14, J14 * -1, J14) -> 0 | AS14: =IF(5 = R14, K14 * -1, K14) -> 0 | AT14: =IF(5 = R14, L14 * -1, L14) -> 1176 | AU14: =IF(5 = R14, M14 * -1, M14) -> 0 | AV14: =IF(5 = R14, N14 * -1, N14) -> 0 | AW14: 0 | AX14: =IF(5 = R14, O14 * -1, O14) -> 0 | AY14: =IF(5 = R14, P14 * -1, P14) -> 1176
A15: 5904-0000 | B15: Month-to-Month | C15: 200 | D15: 200 | E15: 309.68 | F15: 273.33 | G15: 367.74 | H15: 200 | I15: 200 | J15: 283.87 | K15: 300 | L15: 358.07 | M15: 400 | N15: 300 | O15: 380.65 | P15: 3773.34 | R15: 4 | S15: Pacolet | T15: 1226991 | V15: 19060 | W15: Pacolet | X15: 1226991 | Y15: Net Income|Net Operating Income|Income|Other Rental Income | Z15: Net Income|Net Operating Income|Income|Other Rental Income | AA15: 00000|00000|00000|00001 | AB15: Month-to-Month | AC15: 5904-0000 | AD15: 1 | AE15: 2569663 | AF15: 6 | AG15: 4|4|4|4 | AH15: 1 | AI15: 1 | AJ15: 200 | AK15: 200 | AL15: 309.68 | AM15: 273.33 | AN15: 367.74 | AO15: 200 | AP15: 200 | AQ15: 283.87 | AR15: 283.87 | AS15: 300 | AT15: 358.07 | AU15: 400 | AV15: 300 | AW15: 380.65 | AX15: 380.65 | AY15: 3773.34
A16: 5906-0000 | B16: Application Fee | C16: 100 | D16: 75 | E16: 150 | F16: 250 | G16: 25 | H16: 330 | I16: 180 | J16: 210 | K16: 360 | L16: 300 | M16: 60 | N16: 30 | O16: 60 | P16: 2130 | R16: 4 | S16: Pacolet | T16: 1226991 | V16: 19060 | W16: Pacolet | X16: 1226991 | Y16: Net Income|Net Operating Income|Income|Other Rental Income | Z16: Net Income|Net Operating Income|Income|Other Rental Income | AA16: 00000|00000|00000|00001 | AB16: Application Fee | AC16: 5906-0000 | AD16: 1 | AE16: 2567041 | AF16: 7 | AG16: 4|4|4|4 | AH16: 1 | AI16: 1 | AJ16: 100 | AK16: 75 | AL16: 150 | AM16: 250 | AN16: 25 | AO16: 330 | AP16: 180 | AQ16: 210 | AR16: 210 | AS16: 360 | AT16: 300 | AU16: 60 | AV16: 30 | AW16: 60 | AX16: 60 | AY16: 2130
A17: 5907-0000 | B17: Pet Fees - Non-Refundable | C17: 0 | D17: 0 | E17: 150 | F17: 0 | G17: 0 | H17: 0 | I17: 150 | J17: 0 | K17: 0 | L17: 0 | M17: 0 | N17: 150 | O17: 0 | P17: 450 | R17: 4 | S17: Pacolet | T17: 1226991 | V17: 19060 | W17: Pacolet | X17: 1226991 | Y17: Net Income|Net Operating Income|Income|Other Rental Income | Z17: Net Income|Net Operating Income|Income|Other Rental Income | AA17: 00000|00000|00000|00001 | AB17: Pet Fees - Non-Refundable | AC17: 5907-0000 | AD17: 1 | AE17: 2567048 | AF17: 8 | AG17: 4|4|4|4 | AH17: 1 | AI17: 1 | AJ17: 0 | AK17: 0 | AL17: 150 | AM17: 0 | AN17: 0 | AO17: 0 | AP17: 150 | AQ17: 0 | AR17: 0 | AS17: 0 | AT17: 0 | AU17: 0 | AV17: 150 | AW17: 0 | AX17: 0 | AY17: 450
A18: 5908-0000 | B18: Return Check Charge | C18: 175 | D18: 0 | E18: 0 | F18: 0 | G18: 0 | H18: 35 | I18: 70 | J18: 0 | K18: 0 | L18: 0 | M18: 35 | N18: 105.04 | O18: 0 | P18: 420.04 | R18: 4 | S18: Pacolet | T18: 1226991 | V18: 19060 | W18: Pacolet | X18: 1226991 | Y18: Net Income|Net Operating Income|Income|Other Rental Income | Z18: Net Income|Net Operating Income|Income|Other Rental Income | AA18: 00000|00000|00000|00001 | AB18: Return Check Charge | AC18: 5908-0000 | AD18: 1 | AE18: 2567069 | AF18: 9 | AG18: 4|4|4|4 | AH18: 1 | AI18: 1 | AJ18: 175 | AK18: 0 | AL18: 0 | AM18: 0 | AN18: 0 | AO18: 35 | AP18: 70 | AQ18: 0 | AR18: 0 | AS18: 0 | AT18: 0 | AU18: 35 | AV18: 105.04 | AW18: 0 | AX18: 0 | AY18: 420.04
A19: 5910-0000 | B19: Late Fees | C19: 424.5 | D19: 560 | E19: 0 | F19: 1004.12 | G19: 1443 | H19: 454.59 | I19: 1261.5 | J19: 600 | K19: 316 | L19: 736.94 | M19: 450 | N19: -21.5 | O19: 18.95 | P19: 7248.1 | R19: 4 | S19: Pacolet | T19: 1226991 | V19: 19060 | W19: Pacolet | X19: 1226991 | Y19: Net Income|Net Operating Income|Income|Other Rental Income | Z19: Net Income|Net Operating Income|Income|Other Rental Income | AA19: 00000|00000|00000|00001 | AB19: Late Fees | AC19: 5910-0000 | AD19: 1 | AE19: 2567052 | AF19: 10 | AG19: 4|4|4|4 | AH19: 2 | AI19: 2 | AJ19: 424.5 | AK19: 560 | AL19: 0 | AM19: 1004.12 | AN19: 1443 | AO19: 454.59 | AP19: 1261.5 | AQ19: 600 | AR19: 600 | AS19: 316 | AT19: 736.94 | AU19: 450 | AV19: -21.5 | AW19: 18.95 | AX19: 18.95 | AY19: 7248.1
A20: 5911-0000 | B20: Legal Fees | C20: 0 | D20: 0 | E20: 0 | F20: 150 | G20: 340 | H20: 0 | I20: 445 | J20: 150 | K20: 0 | L20: 305 | M20: 90 | N20: 0 | O20: 150 | P20: 1630 | R20: 4 | S20: Pacolet | T20: 1226991 | V20: 19060 | W20: Pacolet | X20: 1226991 | Y20: Net Income|Net Operating Income|Income|Other Rental Income | Z20: Net Income|Net Operating Income|Income|Other Rental Income | AA20: 00000|00000|00000|00001 | AB20: Legal Fees | AC20: 5911-0000 | AD20: 1 | AE20: 2569664 | AF20: 11 | AG20: 4|4|4|4 | AH20: 1 | AI20: 0 | AJ20: 0 | AK20: 0 | AL20: 0 | AM20: 150 | AN20: 340 | AO20: 0 | AP20: 445 | AQ20: 150 | AR20: 150 | AS20: 0 | AT20: 305 | AU20: 90 | AV20: 0 | AW20: 150 | AX20: 150 | AY20: 1630
A21: 5912-0000 | B21: Tenant Benefit Charges | C21: 1010.99 | D21: 987.89 | E21: 754.14 | F21: 1024.6 | G21: 1170.72 | H21: 1040 | I21: 1812.46 | J21: 1581.87 | K21: 1576.39 | L21: 1839.34 | M21: 1698 | N21: 1742.39 | O21: 1454 | P21: 17692.79 | R21: 4 | S21: Pacolet | T21: 1226991 | V21: 19060 | W21: Pacolet | X21: 1226991 | Y21: Net Income|Net Operating Income|Income|Other Rental Income | Z21: Net Income|Net Operating Income|Income|Other Rental Income | AA21: 00000|00000|00000|00001 | AB21: Tenant Benefit Charges | AC21: 5912-0000 | AD21: 1 | AE21: 2567054 | AF21: 12 | AG21: 4|4|4|4 | AH21: 1 | AI21: 1 | AJ21: 1010.99 | AK21: 987.89 | AL21: 754.14 | AM21: 1024.6 | AN21: 1170.72 | AO21: 1040 | AP21: 1812.46 | AQ21: 1581.87 | AR21: 1581.87 | AS21: 1576.39 | AT21: 1839.34 | AU21: 1698 | AV21: 1742.39 | AW21: 1454 | AX21: 1454 | AY21: 17692.79
A22: 5917-0000 | B22: Improper Notice | C22: 0 | D22: 0 | E22: 0 | F22: 0 | G22: 0 | H22: 0 | I22: 0 | J22: 0 | K22: 0 | L22: 0 | M22: 0 | N22: 299.36 | O22: 416.31 | P22: 715.67 | R22: 4 | S22: Pacolet | T22: 1226991 | V22: 19060 | W22: Pacolet | X22: 1226991 | Y22: Net Income|Net Operating Income|Income|Other Rental Income | Z22: Net Income|Net Operating Income|Income|Other Rental Income | AA22: 00000|00000|00000|00001 | AB22: Improper Notice | AC22: 5917-0000 | AD22: 1 | AE22: 2569666 | AF22: 14 | AG22: 4|4|4|4 | AH22: 0 | AI22: 1 | AJ22: 0 | AK22: 0 | AL22: 0 | AM22: 0 | AN22: 0 | AO22: 0 | AP22: 0 | AQ22: 0 | AR22: 0 | AS22: 0 | AT22: 0 | AU22: 0 | AV22: 299.36 | AW22: 416.31 | AX22: 416.31 | AY22: 715.67
A23: 5920-0000 | B23: Resident Damages | C23: 0 | D23: 0 | E23: 0 | F23: 0 | G23: 0 | H23: 0 | I23: 0 | J23: 0 | K23: 0 | L23: 0 | M23: 0 | N23: 0 | O23: 450 | P23: 450 | R23: 4 | S23: Pacolet | T23: 1226991 | V23: 19060 | W23: Pacolet | X23: 1226991 | Y23: Net Income|Net Operating Income|Income|Other Rental Income | Z23: Net Income|Net Operating Income|Income|Other Rental Income | AA23: 00000|00000|00000|00001 | AB23: Resident Damages | AC23: 5920-0000 | AD23: 1 | AE23: 2567046 | AF23: 16 | AG23: 4|4|4|4 | AH23: 0 | AI23: 0 | AJ23: 0 | AK23: 0 | AL23: 0 | AM23: 0 | AN23: 0 | AO23: 0 | AP23: 0 | AQ23: 0 | AR23: 0 | AS23: 0 | AT23: 0 | AU23: 0 | AV23: 0 | AW23: 450 | AX23: 450 | AY23: 450
A24: 5922-0000 | B24: Administrative Fees | C24: 0 | D24: 0 | E24: 200 | F24: 300 | G24: 0 | H24: 100 | I24: 400 | J24: 100 | K24: 200 | L24: 200 | M24: 0 | N24: 192.38 | O24: 0 | P24: 1692.38 | R24: 4 | S24: Pacolet | T24: 1226991 | V24: 19060 | W24: Pacolet | X24: 1226991 | Y24: Net Income|Net Operating Income|Income|Other Rental Income | Z24: Net Income|Net Operating Income|Income|Other Rental Income | AA24: 00000|00000|00000|00001 | AB24: Administrative Fees | AC24: 5922-0000 | AD24: 1 | AE24: 2569668 | AF24: 17 | AG24: 4|4|4|4 | AH24: 1 | AI24: 1 | AJ24: 0 | AK24: 0 | AL24: 200 | AM24: 300 | AN24: 0 | AO24: 100 | AP24: 400 | AQ24: 100 | AR24: 100 | AS24: 200 | AT24: 200 | AU24: 0 | AV24: 192.38 | AW24: 0 | AX24: 0 | AY24: 1692.38
A25: 5923-0000 | B25: Pet Rent | C25: 180 | D25: 180 | E25: 209.03 | F25: 210 | G25: 150 | H25: 209.75 | I25: 262.75 | J25: 190.65 | K25: 177.66 | L25: 122.43 | M25: 74 | N25: 120 | O25: 120 | P25: 2206.27 | R25: 4 | S25: Pacolet | T25: 1226991 | V25: 19060 | W25: Pacolet | X25: 1226991 | Y25: Net Income|Net Operating Income|Income|Other Rental Income | Z25: Net Income|Net Operating Income|Income|Other Rental Income | AA25: 00000|00000|00000|00001 | AB25: Pet Rent | AC25: 5923-0000 | AD25: 1 | AE25: 2567059 | AF25: 18 | AG25: 4|4|4|4 | AH25: 1 | AI25: 1 | AJ25: 180 | AK25: 180 | AL25: 209.03 | AM25: 210 | AN25: 150 | AO25: 209.75 | AP25: 262.75 | AQ25: 190.65 | AR25: 190.65 | AS25: 177.66 | AT25: 122.43 | AU25: 74 | AV25: 120 | AW25: 120 | AX25: 120 | AY25: 2206.27
A26: 5953-0000 | B26: Pest Control Rebill | C26: 15 | D26: 15 | E26: 15 | F26: 15 | G26: 0 | H26: 0 | I26: 0 | J26: 0 | K26: 0 | L26: 0 | M26: 0 | N26: 0 | O26: 0 | P26: 60 | R26: 4 | S26: Pacolet | T26: 1226991 | V26: 19060 | W26: Pacolet | X26: 1226991 | Y26: Net Income|Net Operating Income|Income|Other Rental Income | Z26: Net Income|Net Operating Income|Income|Other Rental Income | AA26: 00000|00000|00000|00001 | AB26: Pest Control Rebill | AC26: 5953-0000 | AD26: 1 | AE26: 2569673 | AF26: 26 | AG26: 4|4|4|4 | AH26: 0 | AI26: 0 | AJ26: 15 | AK26: 15 | AL26: 15 | AM26: 15 | AN26: 0 | AO26: 0 | AP26: 0 | AQ26: 0 | AR26: 0 | AS26: 0 | AT26: 0 | AU26: 0 | AV26: 0 | AW26: 0 | AX26: 0 | AY26: 60
A27: 5954-0000 | B27: Trash Rebill | C27: 30 | D27: 30 | E27: 15 | F27: 15 | G27: 100 | H27: 50 | I27: 0 | J27: 0 | K27: 0 | L27: 0 | M27: 0 | N27: 0 | O27: 0 | P27: 240 | R27: 4 | S27: Pacolet | T27: 1226991 | V27: 19060 | W27: Pacolet | X27: 1226991 | Y27: Net Income|Net Operating Income|Income|Other Rental Income | Z27: Net Income|Net Operating Income|Income|Other Rental Income | AA27: 00000|00000|00000|00001 | AB27: Trash Rebill | AC27: 5954-0000 | AD27: 1 | AE27: 2569674 | AF27: 27 | AG27: 4|4|4|4 | AH27: 0 | AI27: 0 | AJ27: 30 | AK27: 30 | AL27: 15 | AM27: 15 | AN27: 100 | AO27: 50 | AP27: 0 | AQ27: 0 | AR27: 0 | AS27: 0 | AT27: 0 | AU27: 0 | AV27: 0 | AW27: 0 | AX27: 0 | AY27: 240
A28: 5962-0000 | B28: Flexpay | C28: 52.71 | D28: 200 | E28: 200 | F28: 205.36 | G28: 320.16 | H28: 229.03 | I28: 257.29 | J28: 130.25 | K28: 120 | L28: 27.57 | M28: 220 | N28: -11.92 | O28: -179.03 | P28: 1771.42 | R28: 4 | S28: Pacolet | T28: 1226991 | V28: 19060 | W28: Pacolet | X28: 1226991 | Y28: Net Income|Net Operating Income|Income|Other Rental Income | Z28: Net Income|Net Operating Income|Income|Other Rental Income | AA28: 00000|00000|00000|00001 | AB28: Flexpay | AC28: 5962-0000 | AD28: 1 | AE28: 2579273 | AF28: 35 | AG28: 4|4|4|4 | AH28: 2 | AI28: 2 | AJ28: 52.71 | AK28: 200 | AL28: 200 | AM28: 205.36 | AN28: 320.16 | AO28: 229.03 | AP28: 257.29 | AQ28: 130.25 | AR28: 130.25 | AS28: 120 | AT28: 27.57 | AU28: 220 | AV28: -11.92 | AW28: -179.03 | AX28: -179.03 | AY28: 1771.42
A29: 5961-0000 | B29: Foxen Waiver | C29: 425.42 | D29: 403.54 | E29: 329.24 | F29: 364.49 | G29: 391.1 | H29: 336 | I29: 112 | J29: 0 | K29: 0 | L29: 0 | M29: 0 | N29: 0 | O29: 0 | P29: 2361.79 | R29: 4 | S29: Pacolet | T29: 1226991 | V29: 19060 | W29: Pacolet | X29: 1226991 | Y29: Net Income|Net Operating Income|Income|Other Rental Income | Z29: Net Income|Net Operating Income|Income|Other Rental Income | AA29: 00000|00000|00000|00001 | AB29: Foxen Waiver | AC29: 5961-0000 | AD29: 1 | AE29: 2572343 | AF29: 36 | AG29: 4|4|4|4 | AH29: 1 | AI29: 0 | AJ29: 425.42 | AK29: 403.54 | AL29: 329.24 | AM29: 364.49 | AN29: 391.1 | AO29: 336 | AP29: 112 | AQ29: 0 | AR29: 0 | AS29: 0 | AT29: 0 | AU29: 0 | AV29: 0 | AW29: 0 | AX29: 0 | AY29: 2361.79
A30: 5957-0000 | B30: DepositInsure | C30: 269.63 | D30: 316.93 | E30: 255.29 | F30: 356.32 | G30: 281.92 | H30: 341.26 | I30: 479.95 | J30: 789.21 | K30: 821.51 | L30: 135.8 | M30: 473.27 | N30: 460.67 | O30: 434 | P30: 5415.76 | R30: 4 | S30: Pacolet | T30: 1226991 | V30: 19060 | W30: Pacolet | X30: 1226991 | Y30: Net Income|Net Operating Income|Income|Other Rental Income | Z30: Net Income|Net Operating Income|Income|Other Rental Income | AA30: 00000|00000|00000|00001 | AB30: DepositInsure | AC30: 5957-0000 | AD30: 1 | AE30: 2576664 | AF30: 37 | AG30: 4|4|4|4 | AH30: 1 | AI30: 1 | AJ30: 269.63 | AK30: 316.93 | AL30: 255.29 | AM30: 356.32 | AN30: 281.92 | AO30: 341.26 | AP30: 479.95 | AQ30: 789.21 | AR30: 789.21 | AS30: 821.51 | AT30: 135.8 | AU30: 473.27 | AV30: 460.67 | AW30: 434 | AX30: 434 | AY30: 5415.76
A31: 5960-0000 | B31: TV and Internet Income | C31: 1999.34 | D31: 1719.11 | E31: 1404.84 | F31: 1847 | G31: 2088.48 | H31: 1523 | I31: 2251.5 | J31: 1805.49 | K31: 1796.45 | L31: 2114.55 | M31: 1934.67 | N31: 1986.45 | O31: 1650 | P31: 24120.88 | R31: 4 | S31: Pacolet | T31: 1226991 | V31: 19060 | W31: Pacolet | X31: 1226991 | Y31: Net Income|Net Operating Income|Income|Other Rental Income | Z31: Net Income|Net Operating Income|Income|Other Rental Income | AA31: 00000|00000|00000|00001 | AB31: TV and Internet Income | AC31: 5960-0000 | AD31: 1 | AE31: 2572341 | AF31: 38 | AG31: 4|4|4|4 | AH31: 1 | AI31: 1 | AJ31: 1999.34 | AK31: 1719.11 | AL31: 1404.84 | AM31: 1847 | AN31: 2088.48 | AO31: 1523 | AP31: 2251.5 | AQ31: 1805.49 | AR31: 1805.49 | AS31: 1796.45 | AT31: 2114.55 | AU31: 1934.67 | AV31: 1986.45 | AW31: 1650 | AX31: 1650 | AY31: 24120.88
A32: 5956-0000 | B32: Water/Sewer Rebill | C32: 1257.87 | D32: 1129 | E32: 905.68 | F32: 1108 | G32: 1326.28 | H32: 1080 | I32: 1600.18 | J32: 1247.42 | K32: 1237.26 | L32: 1389.33 | M32: 1205.67 | N32: 1325.32 | O32: 1100 | P32: 15912.01 | R32: 4 | S32: Pacolet | T32: 1226991 | V32: 19060 | W32: Pacolet | X32: 1226991 | Y32: Net Income|Net Operating Income|Income|Other Rental Income | Z32: Net Income|Net Operating Income|Income|Other Rental Income | AA32: 00000|00000|00000|00001 | AB32: Water/Sewer Rebill | AC32: 5956-0000 | AD32: 1 | AE32: 2569675 | AF32: 40 | AG32: 4|4|4|4 | AH32: 1 | AI32: 1 | AJ32: 1257.87 | AK32: 1129 | AL32: 905.68 | AM32: 1108 | AN32: 1326.28 | AO32: 1080 | AP32: 1600.18 | AQ32: 1247.42 | AR32: 1247.42 | AS32: 1237.26 | AT32: 1389.33 | AU32: 1205.67 | AV32: 1325.32 | AW32: 1100 | AX32: 1100 | AY32: 15912.01
B33: Other Rental Income | C33: =IF(5 = R33, AJ33 * -1, AJ33) -> 6140.46 | D33: =IF(5 = R33, AK33 * -1, AK33) -> 5816.47 | E33: =IF(5 = R33, AL33 * -1, AL33) -> 4897.9 | F33: =IF(5 = R33, AM33 * -1, AM33) -> 7123.22 | G33: =IF(5 = R33, AN33 * -1, AN33) -> 8004.4 | H33: =IF(5 = R33, AO33 * -1, AO33) -> 5928.63 | I33: =IF(5 = R33, AP33 * -1, AP33) -> 9482.63 | J33: =IF(5 = R33, AR33 * -1, AR33) -> 7088.76 | K33: =IF(5 = R33, AS33 * -1, AS33) -> 6905.27 | L33: =IF(5 = R33, AT33 * -1, AT33) -> 8705.03 | M33: =IF(5 = R33, AU33 * -1, AU33) -> 6640.61 | N33: =IF(5 = R33, AV33 * -1, AV33) -> 6678.19 | O33: =IF(5 = R33, AX33 * -1, AX33) -> 6054.88 | P33: =IF(5 = R33, AY33 * -1, AY33) -> 89466.45 | R33: 4 | S33: =S32 -> Pacolet | T33: =T32 -> 1226991 | U33: =U32 -> 0 | AJ33: =SUM(AJ14:AJ32) -> 6140.46 | AK33: 5816.47 | AL33: 4897.9 | AM33: 7123.22 | AN33: 8004.4 | AO33: 5928.63 | AP33: 9482.63 | AR33: =SUM(AR14:AR32) -> 7088.76 | AS33: =SUM(AS14:AS32) -> 6905.27 | AT33: =SUM(AT14:AT32) -> 8705.03 | AU33: =SUM(AU14:AU32) -> 6640.61 | AV33: =SUM(AV14:AV32) -> 6678.19 | AX33: =SUM(AX14:AX32) -> 6054.88 | AY33: =SUM(AY14:AY32) -> 89466.45
B35: Income | C35: =IF(5 = R35, AJ35 * -1, AJ35) -> 27560.06 | D35: =IF(5 = R35, AK35 * -1, AK35) -> 26967.47 | E35: =IF(5 = R35, AL35 * -1, AL35) -> 23247.18 | F35: =IF(5 = R35, AM35 * -1, AM35) -> 26601.77 | G35: =IF(5 = R35, AN35 * -1, AN35) -> 30642.92 | H35: =IF(5 = R35, AO35 * -1, AO35) -> 24915.58 | I35: =IF(5 = R35, AP35 * -1, AP35) -> 32822.7 | J35: =IF(5 = R35, AR35 * -1, AR35) -> 28230.17 | K35: =IF(5 = R35, AS35 * -1, AS35) -> 27624.29 | L35: =IF(5 = R35, AT35 * -1, AT35) -> 34386.18 | M35: =IF(5 = R35, AU35 * -1, AU35) -> 29204.36 | N35: =IF(5 = R35, AV35 * -1, AV35) -> 30385.54 | O35: =IF(5 = R35, AX35 * -1, AX35) -> 26006.77 | P35: =IF(5 = R35, AY35 * -1, AY35) -> 368594.99 | R35: 4 | S35: =S32 -> Pacolet | T35: =T32 -> 1226991 | U35: =U32 -> 0 | AJ35: =SUM(AJ10:AJ10)+SUM(AJ14:AJ32) -> 27560.06 | AK35: 26967.47 | AL35: 23247.18 | AM35: 26601.77 | AN35: 30642.92 | AO35: 24915.58 | AP35: 32822.7 | AR35: =SUM(AR10:AR10)+SUM(AR14:AR32) -> 28230.17 | AS35: =SUM(AS10:AS10)+SUM(AS14:AS32) -> 27624.29 | AT35: =SUM(AT10:AT10)+SUM(AT14:AT32) -> 34386.18 | AU35: =SUM(AU10:AU10)+SUM(AU14:AU32) -> 29204.36 | AV35: =SUM(AV10:AV10)+SUM(AV14:AV32) -> 30385.54 | AX35: =SUM(AX10:AX10)+SUM(AX14:AX32) -> 26006.77 | AY35: =SUM(AY10:AY10)+SUM(AY14:AY32) -> 368594.99
A37: Operating Expenses
A38: Rental Expense
A39: 6210-0000 | B39: Advertising | C39: 43.3 | D39: 0 | E39: 108.3 | F39: 361.78 | G39: 102.58 | H39: 61.59 | I39: 100.19 | J39: 110.92 | K39: 66.79 | L39: 56.25 | M39: 90.07 | N39: 34.41 | O39: 274.17 | P39: 1410.35 | R39: 5 | S39: Pacolet | T39: 1226991 | V39: 19060 | W39: Pacolet | X39: 1226991 | Y39: Net Income|Net Operating Income|Operating Expenses|Rental Expense | Z39: Net Income|Net Operating Income|Operating Expenses|Rental Expense | AA39: 00000|00000|00001|00000 | AB39: Advertising | AC39: 6210-0000 | AD39: 1 | AE39: 2569676 | AF39: 0 | AG39: 4|4|5|5 | AH39: 2 | AI39: 1 | AJ39: =IF(5 = R39, C39 * -1, C39) -> -43.3 | AK39: =IF(5 = R39, D39 * -1, D39) -> 0 | AL39: =IF(5 = R39, E39 * -1, E39) -> -108.3 | AM39: =IF(5 = R39, F39 * -1, F39) -> -361.78 | AN39: =IF(5 = R39, G39 * -1, G39) -> -102.58 | AO39: =IF(5 = R39, H39 * -1, H39) -> -61.59 | AP39: =IF(5 = R39, I39 * -1, I39) -> -100.19 | AQ39: -110.92 | AR39: =IF(5 = R39, J39 * -1, J39) -> -110.92 | AS39: =IF(5 = R39, K39 * -1, K39) -> -66.79 | AT39: =IF(5 = R39, L39 * -1, L39) -> -56.25 | AU39: =IF(5 = R39, M39 * -1, M39) -> -90.07 | AV39: =IF(5 = R39, N39 * -1, N39) -> -34.41 | AW39: -274.17 | AX39: =IF(5 = R39, O39 * -1, O39) -> -274.17 | AY39: =IF(5 = R39, P39 * -1, P39) -> -1410.35
A40: 6340-0000 | B40: Eviction and Legal Fees | C40: 705 | D40: 0 | E40: 0 | F40: 1000 | G40: 0 | H40: 1250 | I40: 0 | J40: 1750 | K40: 500 | L40: 0 | M40: 1000 | N40: 0 | O40: 1500 | P40: 7705 | R40: 5 | S40: Pacolet | T40: 1226991 | V40: 19060 | W40: Pacolet | X40: 1226991 | Y40: Net Income|Net Operating Income|Operating Expenses|Rental Expense | Z40: Net Income|Net Operating Income|Operating Expenses|Rental Expense | AA40: 00000|00000|00001|00000 | AB40: Eviction and Legal Fees | AC40: 6340-0000 | AD40: 1 | AE40: 2569691 | AF40: 2 | AG40: 4|4|5|5 | AH40: 0 | AI40: 0 | AJ40: =IF(5 = R40, C40 * -1, C40) -> -705 | AK40: =IF(5 = R40, D40 * -1, D40) -> 0 | AL40: =IF(5 = R40, E40 * -1, E40) -> 0 | AM40: =IF(5 = R40, F40 * -1, F40) -> -1000 | AN40: =IF(5 = R40, G40 * -1, G40) -> 0 | AO40: =IF(5 = R40, H40 * -1, H40) -> -1250 | AP40: =IF(5 = R40, I40 * -1, I40) -> 0 | AQ40: -1750 | AR40: =IF(5 = R40, J40 * -1, J40) -> -1750 | AS40: =IF(5 = R40, K40 * -1, K40) -> -500 | AT40: =IF(5 = R40, L40 * -1, L40) -> 0 | AU40: =IF(5 = R40, M40 * -1, M40) -> -1000 | AV40: =IF(5 = R40, N40 * -1, N40) -> 0 | AW40: -1500 | AX40: =IF(5 = R40, O40 * -1, O40) -> -1500 | AY40: =IF(5 = R40, P40 * -1, P40) -> -7705
A41: 6241-0000 | B41: Deposit Insurance | C41: 259.18 | D41: 259.18 | E41: 323.84 | F41: 329.84 | G41: 360.84 | H41: 432.59 | I41: 341.26 | J41: 479.95 | K41: 789.21 | L41: 821.51 | M41: 135.8 | N41: 460.67 | O41: 434 | P41: 5427.87 | R41: 5 | S41: Pacolet | T41: 1226991 | V41: 19060 | W41: Pacolet | X41: 1226991 | Y41: Net Income|Net Operating Income|Operating Expenses|Rental Expense | Z41: Net Income|Net Operating Income|Operating Expenses|Rental Expense | AA41: 00000|00000|00001|00000 | AB41: Deposit Insurance | AC41: 6241-0000 | AD41: 1 | AE41: 2580583 | AF41: 6 | AG41: 4|4|5|5 | AH41: 1 | AI41: 1 | AJ41: =IF(5 = R41, C41 * -1, C41) -> -259.18 | AK41: =IF(5 = R41, D41 * -1, D41) -> -259.18 | AL41: =IF(5 = R41, E41 * -1, E41) -> -323.84 | AM41: =IF(5 = R41, F41 * -1, F41) -> -329.84 | AN41: =IF(5 = R41, G41 * -1, G41) -> -360.84 | AO41: =IF(5 = R41, H41 * -1, H41) -> -432.59 | AP41: =IF(5 = R41, I41 * -1, I41) -> -341.26 | AQ41: -479.95 | AR41: =IF(5 = R41, J41 * -1, J41) -> -479.95 | AS41: =IF(5 = R41, K41 * -1, K41) -> -789.21 | AT41: =IF(5 = R41, L41 * -1, L41) -> -821.51 | AU41: =IF(5 = R41, M41 * -1, M41) -> -135.8 | AV41: =IF(5 = R41, N41 * -1, N41) -> -460.67 | AW41: -434 | AX41: =IF(5 = R41, O41 * -1, O41) -> -434 | AY41: =IF(5 = R41, P41 * -1, P41) -> -5427.87
A42: 6242-0000 | B42: Tenant Insurance | C42: 405.86 | D42: 428.58 | E42: 429.03 | F42: 423.72 | G42: 0 | H42: 0 | I42: 0 | J42: 220 | K42: 220 | L42: 0 | M42: 230 | N42: 0 | O42: 0 | P42: 2357.19 | R42: 5 | S42: Pacolet | T42: 1226991 | V42: 19060 | W42: Pacolet | X42: 1226991 | Y42: Net Income|Net Operating Income|Operating Expenses|Rental Expense | Z42: Net Income|Net Operating Income|Operating Expenses|Rental Expense | AA42: 00000|00000|00001|00000 | AB42: Tenant Insurance | AC42: 6242-0000 | AD42: 1 | AE42: 2579092 | AF42: 7 | AG42: 4|4|5|5 | AH42: 0 | AI42: 0 | AJ42: =IF(5 = R42, C42 * -1, C42) -> -405.86 | AK42: =IF(5 = R42, D42 * -1, D42) -> -428.58 | AL42: =IF(5 = R42, E42 * -1, E42) -> -429.03 | AM42: =IF(5 = R42, F42 * -1, F42) -> -423.72 | AN42: =IF(5 = R42, G42 * -1, G42) -> 0 | AO42: =IF(5 = R42, H42 * -1, H42) -> 0 | AP42: =IF(5 = R42, I42 * -1, I42) -> 0 | AQ42: -220 | AR42: =IF(5 = R42, J42 * -1, J42) -> -220 | AS42: =IF(5 = R42, K42 * -1, K42) -> -220 | AT42: =IF(5 = R42, L42 * -1, L42) -> 0 | AU42: =IF(5 = R42, M42 * -1, M42) -> -230 | AV42: =IF(5 = R42, N42 * -1, N42) -> 0 | AW42: 0 | AX42: =IF(5 = R42, O42 * -1, O42) -> 0 | AY42: =IF(5 = R42, P42 * -1, P42) -> -2357.19
A43: 6239-0000 | B43: Credit Processing Fee | C43: 90.05 | D43: 22.29 | E43: 30.24 | F43: 46.25 | G43: 54.47 | H43: 53.67 | I43: 23.81 | J43: 41.57 | K43: 34.99 | L43: 38.68 | M43: 25.25 | N43: 89.96 | O43: 34.99 | P43: 586.22 | R43: 5 | S43: Pacolet | T43: 1226991 | V43: 19060 | W43: Pacolet | X43: 1226991 | Y43: Net Income|Net Operating Income|Operating Expenses|Rental Expense | Z43: Net Income|Net Operating Income|Operating Expenses|Rental Expense | AA43: 00000|00000|00001|00000 | AB43: Credit Processing Fee | AC43: 6239-0000 | AD43: 1 | AE43: 2569678 | AF43: 8 | AG43: 4|4|5|5 | AH43: 1 | AI43: 1 | AJ43: =IF(5 = R43, C43 * -1, C43) -> -90.05 | AK43: =IF(5 = R43, D43 * -1, D43) -> -22.29 | AL43: =IF(5 = R43, E43 * -1, E43) -> -30.24 | AM43: =IF(5 = R43, F43 * -1, F43) -> -46.25 | AN43: =IF(5 = R43, G43 * -1, G43) -> -54.47 | AO43: =IF(5 = R43, H43 * -1, H43) -> -53.67 | AP43: =IF(5 = R43, I43 * -1, I43) -> -23.81 | AQ43: -41.57 | AR43: =IF(5 = R43, J43 * -1, J43) -> -41.57 | AS43: =IF(5 = R43, K43 * -1, K43) -> -34.99 | AT43: =IF(5 = R43, L43 * -1, L43) -> -38.68 | AU43: =IF(5 = R43, M43 * -1, M43) -> -25.25 | AV43: =IF(5 = R43, N43 * -1, N43) -> -89.96 | AW43: -34.99 | AX43: =IF(5 = R43, O43 * -1, O43) -> -34.99 | AY43: =IF(5 = R43, P43 * -1, P43) -> -586.22
B44: Rental Expense | C44: =IF(5 = R44, AJ44 * -1, AJ44) -> 1503.39 | D44: =IF(5 = R44, AK44 * -1, AK44) -> 710.05 | E44: =IF(5 = R44, AL44 * -1, AL44) -> 891.41 | F44: =IF(5 = R44, AM44 * -1, AM44) -> 2161.59 | G44: =IF(5 = R44, AN44 * -1, AN44) -> 517.89 | H44: =IF(5 = R44, AO44 * -1, AO44) -> 1797.85 | I44: =IF(5 = R44, AP44 * -1, AP44) -> 465.26 | J44: =IF(5 = R44, AR44 * -1, AR44) -> 2602.44 | K44: =IF(5 = R44, AS44 * -1, AS44) -> 1610.99 | L44: =IF(5 = R44, AT44 * -1, AT44) -> 916.44 | M44: =IF(5 = R44, AU44 * -1, AU44) -> 1481.12 | N44: =IF(5 = R44, AV44 * -1, AV44) -> 585.04 | O44: =IF(5 = R44, AX44 * -1, AX44) -> 2243.16 | P44: =IF(5 = R44, AY44 * -1, AY44) -> 17486.63 | R44: 5 | S44: =S43 -> Pacolet | T44: =T43 -> 1226991 | U44: =U43 -> 0 | AJ44: =SUM(AJ39:AJ43) -> -1503.39 | AK44: -710.05 | AL44: -891.41 | AM44: -2161.59 | AN44: -517.89 | AO44: -1797.85 | AP44: -465.26 | AR44: =SUM(AR39:AR43) -> -2602.44 | AS44: =SUM(AS39:AS43) -> -1610.99 | AT44: =SUM(AT39:AT43) -> -916.44 | AU44: =SUM(AU39:AU43) -> -1481.12 | AV44: =SUM(AV39:AV43) -> -585.04 | AX44: =SUM(AX39:AX43) -> -2243.16 | AY44: =SUM(AY39:AY43) -> -17486.63
A46: Administrative Expense
A47: 6314-0000 | B47: Phone and Computer Expense | C47: 103.7 | D47: 0 | E47: 0 | F47: 0 | G47: 0 | H47: 0 | I47: 0 | J47: 0 | K47: 0 | L47: 0 | M47: 0 | N47: 0 | O47: 0 | P47: 103.7 | R47: 5 | S47: Pacolet | T47: 1226991 | V47: 19060 | W47: Pacolet | X47: 1226991 | Y47: Net Income|Net Operating Income|Operating Expenses|Administrative Expense | Z47: Net Income|Net Operating Income|Operating Expenses|Administrative Expense | AA47: 00000|00000|00001|00001 | AB47: Phone and Computer Expense | AC47: 6314-0000 | AD47: 1 | AE47: 2569683 | AF47: 4 | AG47: 4|4|5|5 | AH47: 0 | AI47: 0 | AJ47: =IF(5 = R47, C47 * -1, C47) -> -103.7 | AK47: =IF(5 = R47, D47 * -1, D47) -> 0 | AL47: =IF(5 = R47, E47 * -1, E47) -> 0 | AM47: =IF(5 = R47, F47 * -1, F47) -> 0 | AN47: =IF(5 = R47, G47 * -1, G47) -> 0 | AO47: =IF(5 = R47, H47 * -1, H47) -> 0 | AP47: =IF(5 = R47, I47 * -1, I47) -> 0 | AQ47: 0 | AR47: =IF(5 = R47, J47 * -1, J47) -> 0 | AS47: =IF(5 = R47, K47 * -1, K47) -> 0 | AT47: =IF(5 = R47, L47 * -1, L47) -> 0 | AU47: =IF(5 = R47, M47 * -1, M47) -> 0 | AV47: =IF(5 = R47, N47 * -1, N47) -> 0 | AW47: 0 | AX47: =IF(5 = R47, O47 * -1, O47) -> 0 | AY47: =IF(5 = R47, P47 * -1, P47) -> -103.7
A48: 6314-1000 | B48: Software Fees | C48: 923.43 | D48: 38.3 | E48: 347.69 | F48: 519.18 | G48: 100.44 | H48: 958.93 | I48: 521.17 | J48: 686.9 | K48: 1085.9 | L48: 162.06 | M48: 731.49 | N48: 605.94 | O48: 841.62 | P48: 7523.05 | R48: 5 | S48: Pacolet | T48: 1226991 | V48: 19060 | W48: Pacolet | X48: 1226991 | Y48: Net Income|Net Operating Income|Operating Expenses|Administrative Expense | Z48: Net Income|Net Operating Income|Operating Expenses|Administrative Expense | AA48: 00000|00000|00001|00001 | AB48: Software Fees | AC48: 6314-1000 | AD48: 1 | AE48: 2569684 | AF48: 5 | AG48: 4|4|5|5 | AH48: 2 | AI48: 2 | AJ48: =IF(5 = R48, C48 * -1, C48) -> -923.43 | AK48: =IF(5 = R48, D48 * -1, D48) -> -38.3 | AL48: =IF(5 = R48, E48 * -1, E48) -> -347.69 | AM48: =IF(5 = R48, F48 * -1, F48) -> -519.18 | AN48: =IF(5 = R48, G48 * -1, G48) -> -100.44 | AO48: =IF(5 = R48, H48 * -1, H48) -> -958.93 | AP48: =IF(5 = R48, I48 * -1, I48) -> -521.17 | AQ48: -686.9 | AR48: =IF(5 = R48, J48 * -1, J48) -> -686.9 | AS48: =IF(5 = R48, K48 * -1, K48) -> -1085.9 | AT48: =IF(5 = R48, L48 * -1, L48) -> -162.06 | AU48: =IF(5 = R48, M48 * -1, M48) -> -731.49 | AV48: =IF(5 = R48, N48 * -1, N48) -> -605.94 | AW48: -841.62 | AX48: =IF(5 = R48, O48 * -1, O48) -> -841.62 | AY48: =IF(5 = R48, P48 * -1, P48) -> -7523.05
A49: 6320-0000 | B49: Management Fee | C49: 1969.47 | D49: 2170.84 | E49: 2112.6 | F49: 1852.97 | G49: 2035.81 | H49: 2324.36 | I49: 1518.96 | J49: 0 | K49: 3558.52 | L49: 0 | M49: 1657.52 | N49: 3858.81 | O49: 1896.59 | P49: 24956.45 | R49: 5 | S49: Pacolet | T49: 1226991 | V49: 19060 | W49: Pacolet | X49: 1226991 | Y49: Net Income|Net Operating Income|Operating Expenses|Administrative Expense | Z49: Net Income|Net Operating Income|Operating Expenses|Administrative Expense | AA49: 00000|00000|00001|00001 | AB49: Management Fee | AC49: 6320-0000 | AD49: 1 | AE49: 2567056 | AF49: 12 | AG49: 4|4|5|5 | AH49: 1 | AI49: 1 | AJ49: =IF(5 = R49, C49 * -1, C49) -> -1969.47 | AK49: =IF(5 = R49, D49 * -1, D49) -> -2170.84 | AL49: =IF(5 = R49, E49 * -1, E49) -> -2112.6 | AM49: =IF(5 = R49, F49 * -1, F49) -> -1852.97 | AN49: =IF(5 = R49, G49 * -1, G49) -> -2035.81 | AO49: =IF(5 = R49, H49 * -1, H49) -> -2324.36 | AP49: =IF(5 = R49, I49 * -1, I49) -> -1518.96 | AQ49: 0 | AR49: =IF(5 = R49, J49 * -1, J49) -> 0 | AS49: =IF(5 = R49, K49 * -1, K49) -> -3558.52 | AT49: =IF(5 = R49, L49 * -1, L49) -> 0 | AU49: =IF(5 = R49, M49 * -1, M49) -> -1657.52 | AV49: =IF(5 = R49, N49 * -1, N49) -> -3858.81 | AW49: -1896.59 | AX49: =IF(5 = R49, O49 * -1, O49) -> -1896.59 | AY49: =IF(5 = R49, P49 * -1, P49) -> -24956.45
B50: Administrative Expense | C50: =IF(5 = R50, AJ50 * -1, AJ50) -> 2996.6 | D50: =IF(5 = R50, AK50 * -1, AK50) -> 2209.14 | E50: =IF(5 = R50, AL50 * -1, AL50) -> 2460.29 | F50: =IF(5 = R50, AM50 * -1, AM50) -> 2372.15 | G50: =IF(5 = R50, AN50 * -1, AN50) -> 2136.25 | H50: =IF(5 = R50, AO50 * -1, AO50) -> 3283.29 | I50: =IF(5 = R50, AP50 * -1, AP50) -> 2040.13 | J50: =IF(5 = R50, AR50 * -1, AR50) -> 686.9 | K50: =IF(5 = R50, AS50 * -1, AS50) -> 4644.42 | L50: =IF(5 = R50, AT50 * -1, AT50) -> 162.06 | M50: =IF(5 = R50, AU50 * -1, AU50) -> 2389.01 | N50: =IF(5 = R50, AV50 * -1, AV50) -> 4464.75 | O50: =IF(5 = R50, AX50 * -1, AX50) -> 2738.21 | P50: =IF(5 = R50, AY50 * -1, AY50) -> 32583.2 | R50: 5 | S50: =S49 -> Pacolet | T50: =T49 -> 1226991 | U50: =U49 -> 0 | AJ50: =SUM(AJ47:AJ49) -> -2996.6 | AK50: -2209.14 | AL50: -2460.29 | AM50: -2372.15 | AN50: -2136.25 | AO50: -3283.29 | AP50: -2040.13 | AR50: =SUM(AR47:AR49) -> -686.9 | AS50: =SUM(AS47:AS49) -> -4644.42 | AT50: =SUM(AT47:AT49) -> -162.06 | AU50: =SUM(AU47:AU49) -> -2389.01 | AV50: =SUM(AV47:AV49) -> -4464.75 | AX50: =SUM(AX47:AX49) -> -2738.21 | AY50: =SUM(AY47:AY49) -> -32583.2
A52: Payroll Related Expense
A53: 6369-0000 | B53: Payroll - Leasing Staff | C53: 980.46 | D53: 861.2 | E53: 496.75 | F53: 0 | G53: 0 | H53: 302.66 | I53: 0 | J53: 1196.63 | K53: 802.44 | L53: 0 | M53: 981.76 | N53: 0 | O53: 0 | P53: 5621.9 | R53: 5 | S53: Pacolet | T53: 1226991 | V53: 19060 | W53: Pacolet | X53: 1226991 | Y53: Net Income|Net Operating Income|Operating Expenses|Payroll Related Expense | Z53: Net Income|Net Operating Income|Operating Expenses|Payroll Related Expense | AA53: 00000|00000|00001|00002 | AB53: Payroll - Leasing Staff | AC53: 6369-0000 | AD53: 1 | AE53: 2569696 | AF53: 2 | AG53: 4|4|5|5 | AH53: 0 | AI53: 0 | AJ53: =IF(5 = R53, C53 * -1, C53) -> -980.46 | AK53: =IF(5 = R53, D53 * -1, D53) -> -861.2 | AL53: =IF(5 = R53, E53 * -1, E53) -> -496.75 | AM53: =IF(5 = R53, F53 * -1, F53) -> 0 | AN53: =IF(5 = R53, G53 * -1, G53) -> 0 | AO53: =IF(5 = R53, H53 * -1, H53) -> -302.66 | AP53: =IF(5 = R53, I53 * -1, I53) -> 0 | AQ53: -1196.63 | AR53: =IF(5 = R53, J53 * -1, J53) -> -1196.63 | AS53: =IF(5 = R53, K53 * -1, K53) -> -802.44 | AT53: =IF(5 = R53, L53 * -1, L53) -> 0 | AU53: =IF(5 = R53, M53 * -1, M53) -> -981.76 | AV53: =IF(5 = R53, N53 * -1, N53) -> 0 | AW53: 0 | AX53: =IF(5 = R53, O53 * -1, O53) -> 0 | AY53: =IF(5 = R53, P53 * -1, P53) -> -5621.9
B54: Payroll Related Expense | C54: =IF(5 = R54, AJ54 * -1, AJ54) -> 980.46 | D54: =IF(5 = R54, AK54 * -1, AK54) -> 861.2 | E54: =IF(5 = R54, AL54 * -1, AL54) -> 496.75 | F54: =IF(5 = R54, AM54 * -1, AM54) -> 0 | G54: =IF(5 = R54, AN54 * -1, AN54) -> 0 | H54: =IF(5 = R54, AO54 * -1, AO54) -> 302.66 | I54: =IF(5 = R54, AP54 * -1, AP54) -> 0 | J54: =IF(5 = R54, AR54 * -1, AR54) -> 1196.63 | K54: =IF(5 = R54, AS54 * -1, AS54) -> 802.44 | L54: =IF(5 = R54, AT54 * -1, AT54) -> 0 | M54: =IF(5 = R54, AU54 * -1, AU54) -> 981.76 | N54: =IF(5 = R54, AV54 * -1, AV54) -> 0 | O54: =IF(5 = R54, AX54 * -1, AX54) -> 0 | P54: =IF(5 = R54, AY54 * -1, AY54) -> 5621.9 | R54: 5 | S54: =S53 -> Pacolet | T54: =T53 -> 1226991 | U54: =U53 -> 0 | AJ54: =SUM(AJ53:AJ53) -> -980.46 | AK54: -861.2 | AL54: -496.75 | AM54: 0 | AN54: 0 | AO54: -302.66 | AP54: 0 | AR54: =SUM(AR53:AR53) -> -1196.63 | AS54: =SUM(AS53:AS53) -> -802.44 | AT54: =SUM(AT53:AT53) -> 0 | AU54: =SUM(AU53:AU53) -> -981.76 | AV54: =SUM(AV53:AV53) -> 0 | AX54: =SUM(AX53:AX53) -> 0 | AY54: =SUM(AY53:AY53) -> -5621.9
A56: Utility Expense
A57: 6360-0000 | B57: TV and Internet Expense | C57: 1200.47 | D57: 1200.47 | E57: 1200.47 | F57: 1200.47 | G57: 1200.47 | H57: 1200.47 | I57: 1248.49 | J57: 1248.49 | K57: 1248.49 | L57: 1248.49 | M57: 1248.49 | N57: 1248.49 | O57: 1248.49 | P57: 15942.25 | R57: 5 | S57: Pacolet | T57: 1226991 | V57: 19060 | W57: Pacolet | X57: 1226991 | Y57: Net Income|Net Operating Income|Operating Expenses|Utility Expense | Z57: Net Income|Net Operating Income|Operating Expenses|Utility Expense | AA57: 00000|00000|00001|00003 | AB57: TV and Internet Expense | AC57: 6360-0000 | AD57: 1 | AE57: 2569692 | AF57: 0 | AG57: 4|4|5|5 | AH57: 1 | AI57: 1 | AJ57: =IF(5 = R57, C57 * -1, C57) -> -1200.47 | AK57: =IF(5 = R57, D57 * -1, D57) -> -1200.47 | AL57: =IF(5 = R57, E57 * -1, E57) -> -1200.47 | AM57: =IF(5 = R57, F57 * -1, F57) -> -1200.47 | AN57: =IF(5 = R57, G57 * -1, G57) -> -1200.47 | AO57: =IF(5 = R57, H57 * -1, H57) -> -1200.47 | AP57: =IF(5 = R57, I57 * -1, I57) -> -1248.49 | AQ57: -1248.49 | AR57: =IF(5 = R57, J57 * -1, J57) -> -1248.49 | AS57: =IF(5 = R57, K57 * -1, K57) -> -1248.49 | AT57: =IF(5 = R57, L57 * -1, L57) -> -1248.49 | AU57: =IF(5 = R57, M57 * -1, M57) -> -1248.49 | AV57: =IF(5 = R57, N57 * -1, N57) -> -1248.49 | AW57: -1248.49 | AX57: =IF(5 = R57, O57 * -1, O57) -> -1248.49 | AY57: =IF(5 = R57, P57 * -1, P57) -> -15942.25
A58: 6450-2000 | B58: Electric - Common Areas | C58: 706.53 | D58: 322.09 | E58: 881.48 | F58: 327.29 | G58: 168.14 | H58: 623.07 | I58: 466.44 | J58: 127.29 | K58: 563.51 | L58: 717.52 | M58: 71.91 | N58: 0 | O58: 104.96 | P58: 5080.23 | R58: 5 | S58: Pacolet | T58: 1226991 | V58: 19060 | W58: Pacolet | X58: 1226991 | Y58: Net Income|Net Operating Income|Operating Expenses|Utility Expense | Z58: Net Income|Net Operating Income|Operating Expenses|Utility Expense | AA58: 00000|00000|00001|00003 | AB58: Electric - Common Areas | AC58: 6450-2000 | AD58: 1 | AE58: 2569708 | AF58: 1 | AG58: 4|4|5|5 | AH58: 2 | AI58: 0 | AJ58: -706.53 | AK58: -322.09 | AL58: -881.48 | AM58: -327.29 | AN58: -168.14 | AO58: -623.07 | AP58: -466.44 | AQ58: -127.29 | AR58: -127.29 | AS58: -563.51 | AT58: -717.52 | AU58: -71.91 | AV58: 0 | AW58: -104.96 | AX58: -104.96 | AY58: -5080.23
A59: 6450-5000 | B59: Electric - Vacant Units | C59: 0 | D59: 244.69 | E59: 76.18 | F59: 109.54 | G59: 161.94 | H59: 37.91 | I59: 222.9 | J59: 8.89 | K59: 649.22 | L59: 45.58 | M59: 9.48 | N59: 0 | O59: 31.88 | P59: 1598.21 | R59: 5 | S59: Pacolet | T59: 1226991 | V59: 19060 | W59: Pacolet | X59: 1226991 | Y59: Net Income|Net Operating Income|Operating Expenses|Utility Expense | Z59: Net Income|Net Operating Income|Operating Expenses|Utility Expense | AA59: 00000|00000|00001|00003 | AB59: Electric - Vacant Units | AC59: 6450-5000 | AD59: 1 | AE59: 2569710 | AF59: 3 | AG59: 4|4|5|5 | AH59: 1 | AI59: 0 | AJ59: 0 | AK59: -244.69 | AL59: -76.18 | AM59: -109.54 | AN59: -161.94 | AO59: -37.91 | AP59: -222.9 | AQ59: -8.89 | AR59: -8.89 | AS59: -649.22 | AT59: -45.58 | AU59: -9.48 | AV59: 0 | AW59: -31.88 | AX59: -31.88 | AY59: -1598.21
A60: 6453-0000 | B60: Water / Sewer | C60: 10.21 | D60: 239.52 | E60: 3220.58 | F60: 6.37 | G60: 580.73 | H60: 2134.7 | I60: 0 | J60: 1449.88 | K60: 593.94 | L60: 874.29 | M60: 0 | N60: 2797.48 | O60: 2392.83 | P60: 14300.53 | R60: 5 | S60: Pacolet | T60: 1226991 | V60: 19060 | W60: Pacolet | X60: 1226991 | Y60: Net Income|Net Operating Income|Operating Expenses|Utility Expense | Z60: Net Income|Net Operating Income|Operating Expenses|Utility Expense | AA60: 00000|00000|00001|00003 | AB60: Water / Sewer | AC60: 6453-0000 | AD60: 1 | AE60: 2569712 | AF60: 5 | AG60: 4|4|5|5 | AH60: 0 | AI60: 1 | AJ60: -10.21 | AK60: -239.52 | AL60: -3220.58 | AM60: -6.37 | AN60: -580.73 | AO60: -2134.7 | AP60: 0 | AQ60: -1449.88 | AR60: -1449.88 | AS60: -593.94 | AT60: -874.29 | AU60: 0 | AV60: -2797.48 | AW60: -2392.83 | AX60: -2392.83 | AY60: -14300.53
A61: 6470-0000 | B61: Garbage Removal | C61: 897.87 | D61: 645.45 | E61: 0 | F61: 1187.2 | G61: 0 | H61: 1939.47 | I61: 150 | J61: 1318.72 | K61: 0 | L61: 1041.31 | M61: 650 | N61: 0 | O61: 1808.47 | P61: 9638.49 | R61: 5 | S61: Pacolet | T61: 1226991 | V61: 19060 | W61: Pacolet | X61: 1226991 | Y61: Net Income|Net Operating Income|Operating Expenses|Utility Expense | Z61: Net Income|Net Operating Income|Operating Expenses|Utility Expense | AA61: 00000|00000|00001|00003 | AB61: Garbage Removal | AC61: 6470-0000 | AD61: 1 | AE61: 2569713 | AF61: 6 | AG61: 4|4|5|5 | AH61: 1 | AI61: 0 | AJ61: -897.87 | AK61: -645.45 | AL61: 0 | AM61: -1187.2 | AN61: 0 | AO61: -1939.47 | AP61: -150 | AQ61: -1318.72 | AR61: -1318.72 | AS61: 0 | AT61: -1041.31 | AU61: -650 | AV61: 0 | AW61: -1808.47 | AX61: -1808.47 | AY61: -9638.49
A62: 6471-0000 | B62: Garbage Removal Rebill | C62: 0 | D62: 0 | E62: 0 | F62: 0 | G62: 22.55 | H62: 127.45 | I62: -150 | J62: 0 | K62: 0 | L62: 0 | M62: 0 | N62: 0 | O62: 0 | P62: 0 | R62: 5 | S62: Pacolet | T62: 1226991 | V62: 19060 | W62: Pacolet | X62: 1226991 | Y62: Net Income|Net Operating Income|Operating Expenses|Utility Expense | Z62: Net Income|Net Operating Income|Operating Expenses|Utility Expense | AA62: 00000|00000|00001|00003 | AB62: Garbage Removal Rebill | AC62: 6471-0000 | AD62: 1 | AE62: 2569714 | AF62: 7 | AG62: 4|4|5|5 | AH62: 1 | AI62: 0 | AJ62: 0 | AK62: 0 | AL62: 0 | AM62: 0 | AN62: -22.55 | AO62: -127.45 | AP62: 150 | AQ62: 0 | AR62: 0 | AS62: 0 | AT62: 0 | AU62: 0 | AV62: 0 | AW62: 0 | AX62: 0 | AY62: 0
B63: Utility Expense | C63: =IF(5 = R63, AJ63 * -1, AJ63) -> 2815.08 | D63: =IF(5 = R63, AK63 * -1, AK63) -> 2652.22 | E63: =IF(5 = R63, AL63 * -1, AL63) -> 5378.71 | F63: =IF(5 = R63, AM63 * -1, AM63) -> 2830.87 | G63: =IF(5 = R63, AN63 * -1, AN63) -> 2133.83 | H63: =IF(5 = R63, AO63 * -1, AO63) -> 6063.07 | I63: =IF(5 = R63, AP63 * -1, AP63) -> 1937.83 | J63: =IF(5 = R63, AR63 * -1, AR63) -> 4153.27 | K63: =IF(5 = R63, AS63 * -1, AS63) -> 3055.16 | L63: =IF(5 = R63, AT63 * -1, AT63) -> 3927.19 | M63: =IF(5 = R63, AU63 * -1, AU63) -> 1979.88 | N63: =IF(5 = R63, AV63 * -1, AV63) -> 4045.97 | O63: =IF(5 = R63, AX63 * -1, AX63) -> 5586.63 | P63: =IF(5 = R63, AY63 * -1, AY63) -> 46559.71 | R63: 5 | S63: =S62 -> Pacolet | T63: =T62 -> 1226991 | U63: =U62 -> 0 | AJ63: =SUM(AJ57:AJ62) -> -2815.08 | AK63: -2652.22 | AL63: -5378.71 | AM63: -2830.87 | AN63: -2133.83 | AO63: -6063.07 | AP63: -1937.83 | AR63: =SUM(AR57:AR62) -> -4153.27 | AS63: =SUM(AS57:AS62) -> -3055.16 | AT63: =SUM(AT57:AT62) -> -3927.19 | AU63: =SUM(AU57:AU62) -> -1979.88 | AV63: =SUM(AV57:AV62) -> -4045.97 | AX63: =SUM(AX57:AX62) -> -5586.63 | AY63: =SUM(AY57:AY62) -> -46559.71
A65: Maintenance Expense
A66: 6143-0000 | B66: General Maintenance Labor | C66: 373.73 | D66: 200 | E66: 300 | F66: 0 | G66: 0 | H66: 600 | I66: 0 | J66: 0 | K66: 286.88 | L66: 1467.5 | M66: 1103.45 | N66: 254.29 | O66: 1425 | P66: 6010.85 | R66: 5 | S66: Pacolet | T66: 1226991 | V66: 19060 | W66: Pacolet | X66: 1226991 | Y66: Net Income|Net Operating Income|Operating Expenses|Maintenance Expense | Z66: Net Income|Net Operating Income|Operating Expenses|Maintenance Expense | AA66: 00000|00000|00001|00004 | AB66: General Maintenance Labor | AC66: 6143-0000 | AD66: 1 | AE66: 2570314 | AF66: 0 | AG66: 4|4|5|5 | AH66: 0 | AI66: 1 | AJ66: =IF(5 = R66, C66 * -1, C66) -> -373.73 | AK66: =IF(5 = R66, D66 * -1, D66) -> -200 | AL66: =IF(5 = R66, E66 * -1, E66) -> -300 | AM66: =IF(5 = R66, F66 * -1, F66) -> 0 | AN66: =IF(5 = R66, G66 * -1, G66) -> 0 | AO66: =IF(5 = R66, H66 * -1, H66) -> -600 | AP66: =IF(5 = R66, I66 * -1, I66) -> 0 | AQ66: 0 | AR66: =IF(5 = R66, J66 * -1, J66) -> 0 | AS66: =IF(5 = R66, K66 * -1, K66) -> -286.88 | AT66: =IF(5 = R66, L66 * -1, L66) -> -1467.5 | AU66: =IF(5 = R66, M66 * -1, M66) -> -1103.45 | AV66: =IF(5 = R66, N66 * -1, N66) -> -254.29 | AW66: -1425 | AX66: =IF(5 = R66, O66 * -1, O66) -> -1425 | AY66: =IF(5 = R66, P66 * -1, P66) -> -6010.85
A67: 6522-0000 | B67: Grounds Maint Contract | C67: 1124.06 | D67: 1606.55 | E67: 1075 | F67: 965 | G67: 1700 | H67: 581.64 | I67: 985 | J67: 1062.38 | K67: 1149.88 | L67: 831.76 | M67: 717.18 | N67: 720.85 | O67: 822.18 | P67: 13341.48 | R67: 5 | S67: Pacolet | T67: 1226991 | V67: 19060 | W67: Pacolet | X67: 1226991 | Y67: Net Income|Net Operating Income|Operating Expenses|Maintenance Expense | Z67: Net Income|Net Operating Income|Operating Expenses|Maintenance Expense | AA67: 00000|00000|00001|00004 | AB67: Grounds Maint Contract | AC67: 6522-0000 | AD67: 1 | AE67: 2569721 | AF67: 2 | AG67: 4|4|5|5 | AH67: 1 | AI67: 1 | AJ67: -1124.06 | AK67: -1606.55 | AL67: -1075 | AM67: -965 | AN67: -1700 | AO67: -581.64 | AP67: -985 | AQ67: -1062.38 | AR67: -1062.38 | AS67: -1149.88 | AT67: -831.76 | AU67: -717.18 | AV67: -720.85 | AW67: -822.18 | AX67: -822.18 | AY67: -13341.48
A68: 6526-0000 | B68: Maint - Exterminating | C68: 0 | D68: 155 | E68: 155 | F68: 0 | G68: 155 | H68: 159.9 | I68: 155 | J68: 155 | K68: 170.5 | L68: 170.5 | M68: 155 | N68: 0 | O68: 341 | P68: 1771.9 | R68: 5 | S68: Pacolet | T68: 1226991 | V68: 19060 | W68: Pacolet | X68: 1226991 | Y68: Net Income|Net Operating Income|Operating Expenses|Maintenance Expense | Z68: Net Income|Net Operating Income|Operating Expenses|Maintenance Expense | AA68: 00000|00000|00001|00004 | AB68: Maint - Exterminating | AC68: 6526-0000 | AD68: 1 | AE68: 2569722 | AF68: 3 | AG68: 4|4|5|5 | AH68: 1 | AI68: 0 | AJ68: 0 | AK68: -155 | AL68: -155 | AM68: 0 | AN68: -155 | AO68: -159.9 | AP68: -155 | AQ68: -155 | AR68: -155 | AS68: -170.5 | AT68: -170.5 | AU68: -155 | AV68: 0 | AW68: -341 | AX68: -341 | AY68: -1771.9
A69: 6532-0000 | B69: Cleaning - Contract | C69: 0 | D69: 0 | E69: 0 | F69: 0 | G69: 0 | H69: 0 | I69: 0 | J69: 0 | K69: 0 | L69: 0 | M69: 23 | N69: 0 | O69: 0 | P69: 23 | R69: 5 | S69: Pacolet | T69: 1226991 | V69: 19060 | W69: Pacolet | X69: 1226991 | Y69: Net Income|Net Operating Income|Operating Expenses|Maintenance Expense | Z69: Net Income|Net Operating Income|Operating Expenses|Maintenance Expense | AA69: 00000|00000|00001|00004 | AB69: Cleaning - Contract | AC69: 6532-0000 | AD69: 1 | AE69: 2569725 | AF69: 6 | AG69: 4|4|5|5 | AH69: 0 | AI69: 0 | AJ69: 0 | AK69: 0 | AL69: 0 | AM69: 0 | AN69: 0 | AO69: 0 | AP69: 0 | AQ69: 0 | AR69: 0 | AS69: 0 | AT69: 0 | AU69: -23 | AV69: 0 | AW69: 0 | AX69: 0 | AY69: -23
A70: 6537-0000 | B70: Maint - Plumbing | C70: 0 | D70: 300 | E70: 700 | F70: 0 | G70: 0 | H70: 400 | I70: 0 | J70: 0 | K70: 100 | L70: 200 | M70: 200 | N70: 0 | O70: 400 | P70: 2300 | R70: 5 | S70: Pacolet | T70: 1226991 | V70: 19060 | W70: Pacolet | X70: 1226991 | Y70: Net Income|Net Operating Income|Operating Expenses|Maintenance Expense | Z70: Net Income|Net Operating Income|Operating Expenses|Maintenance Expense | AA70: 00000|00000|00001|00004 | AB70: Maint - Plumbing | AC70: 6537-0000 | AD70: 1 | AE70: 2569728 | AF70: 10 | AG70: 4|4|5|5 | AH70: 0 | AI70: 0 | AJ70: 0 | AK70: -300 | AL70: -700 | AM70: 0 | AN70: 0 | AO70: -400 | AP70: 0 | AQ70: 0 | AR70: 0 | AS70: -100 | AT70: -200 | AU70: -200 | AV70: 0 | AW70: -400 | AX70: -400 | AY70: -2300
A71: 6538-0000 | B71: Maint - Electrical | C71: 100 | D71: 0 | E71: 200 | F71: 0 | G71: 0 | H71: 0 | I71: 0 | J71: 0 | K71: 100 | L71: 0 | M71: 0 | N71: 0 | O71: 100 | P71: 500 | R71: 5 | S71: Pacolet | T71: 1226991 | V71: 19060 | W71: Pacolet | X71: 1226991 | Y71: Net Income|Net Operating Income|Operating Expenses|Maintenance Expense | Z71: Net Income|Net Operating Income|Operating Expenses|Maintenance Expense | AA71: 00000|00000|00001|00004 | AB71: Maint - Electrical | AC71: 6538-0000 | AD71: 1 | AE71: 2569729 | AF71: 11 | AG71: 4|4|5|5 | AH71: 0 | AI71: 0 | AJ71: -100 | AK71: 0 | AL71: -200 | AM71: 0 | AN71: 0 | AO71: 0 | AP71: 0 | AQ71: 0 | AR71: 0 | AS71: -100 | AT71: 0 | AU71: 0 | AV71: 0 | AW71: -100 | AX71: -100 | AY71: -500
A72: 6539-0000 | B72: Maint - Appliances | C72: 0 | D72: 100 | E72: 300 | F72: 0 | G72: 0 | H72: 100 | I72: 0 | J72: 0 | K72: 400 | L72: 200 | M72: 300 | N72: 0 | O72: 1900 | P72: 3300 | R72: 5 | S72: Pacolet | T72: 1226991 | V72: 19060 | W72: Pacolet | X72: 1226991 | Y72: Net Income|Net Operating Income|Operating Expenses|Maintenance Expense | Z72: Net Income|Net Operating Income|Operating Expenses|Maintenance Expense | AA72: 00000|00000|00001|00004 | AB72: Maint - Appliances | AC72: 6539-0000 | AD72: 1 | AE72: 2569732 | AF72: 14 | AG72: 4|4|5|5 | AH72: 0 | AI72: 0 | AJ72: 0 | AK72: -100 | AL72: -300 | AM72: 0 | AN72: 0 | AO72: -100 | AP72: 0 | AQ72: 0 | AR72: 0 | AS72: -400 | AT72: -200 | AU72: -300 | AV72: 0 | AW72: -1900 | AX72: -1900 | AY72: -3300
A73: 6541-0000 | B73: Maint - Materials | C73: 0 | D73: 0 | E73: 407.13 | F73: 51.23 | G73: 195.46 | H73: 37.27 | I73: 0 | J73: 0 | K73: 15 | L73: 812.37 | M73: 0 | N73: 179.54 | O73: 154.27 | P73: 1852.27 | R73: 5 | S73: Pacolet | T73: 1226991 | V73: 19060 | W73: Pacolet | X73: 1226991 | Y73: Net Income|Net Operating Income|Operating Expenses|Maintenance Expense | Z73: Net Income|Net Operating Income|Operating Expenses|Maintenance Expense | AA73: 00000|00000|00001|00004 | AB73: Maint - Materials | AC73: 6541-0000 | AD73: 1 | AE73: 2569733 | AF73: 15 | AG73: 4|4|5|5 | AH73: 0 | AI73: 1 | AJ73: 0 | AK73: 0 | AL73: -407.13 | AM73: -51.23 | AN73: -195.46 | AO73: -37.27 | AP73: 0 | AQ73: 0 | AR73: 0 | AS73: -15 | AT73: -812.37 | AU73: 0 | AV73: -179.54 | AW73: -154.27 | AX73: -154.27 | AY73: -1852.27
A74: 6551-0000 | B74: HVAC - Repair and Maint | C74: 100 | D74: 0 | E74: 100 | F74: 0 | G74: 0 | H74: 400 | I74: 0 | J74: 0 | K74: 500 | L74: 800 | M74: 200 | N74: 0 | O74: 100 | P74: 2200 | R74: 5 | S74: Pacolet | T74: 1226991 | V74: 19060 | W74: Pacolet | X74: 1226991 | Y74: Net Income|Net Operating Income|Operating Expenses|Maintenance Expense | Z74: Net Income|Net Operating Income|Operating Expenses|Maintenance Expense | AA74: 00000|00000|00001|00004 | AB74: HVAC - Repair and Maint | AC74: 6551-0000 | AD74: 1 | AE74: 2569735 | AF74: 17 | AG74: 4|4|5|5 | AH74: 0 | AI74: 0 | AJ74: -100 | AK74: 0 | AL74: -100 | AM74: 0 | AN74: 0 | AO74: -400 | AP74: 0 | AQ74: 0 | AR74: 0 | AS74: -500 | AT74: -800 | AU74: -200 | AV74: 0 | AW74: -100 | AX74: -100 | AY74: -2200
B75: Maintenance Expense | C75: =IF(5 = R75, AJ75 * -1, AJ75) -> 1697.79 | D75: =IF(5 = R75, AK75 * -1, AK75) -> 2361.55 | E75: =IF(5 = R75, AL75 * -1, AL75) -> 3237.13 | F75: =IF(5 = R75, AM75 * -1, AM75) -> 1016.23 | G75: =IF(5 = R75, AN75 * -1, AN75) -> 2050.46 | H75: =IF(5 = R75, AO75 * -1, AO75) -> 2278.81 | I75: =IF(5 = R75, AP75 * -1, AP75) -> 1140 | J75: =IF(5 = R75, AR75 * -1, AR75) -> 1217.38 | K75: =IF(5 = R75, AS75 * -1, AS75) -> 2722.26 | L75: =IF(5 = R75, AT75 * -1, AT75) -> 4482.13 | M75: =IF(5 = R75, AU75 * -1, AU75) -> 2698.63 | N75: =IF(5 = R75, AV75 * -1, AV75) -> 1154.68 | O75: =IF(5 = R75, AX75 * -1, AX75) -> 5242.45 | P75: =IF(5 = R75, AY75 * -1, AY75) -> 31299.5 | R75: 5 | S75: =S74 -> Pacolet | T75: =T74 -> 1226991 | U75: =U74 -> 0 | AJ75: =SUM(AJ66:AJ74) -> -1697.79 | AK75: -2361.55 | AL75: -3237.13 | AM75: -1016.23 | AN75: -2050.46 | AO75: -2278.81 | AP75: -1140 | AR75: =SUM(AR66:AR74) -> -1217.38 | AS75: =SUM(AS66:AS74) -> -2722.26 | AT75: =SUM(AT66:AT74) -> -4482.13 | AU75: =SUM(AU66:AU74) -> -2698.63 | AV75: =SUM(AV66:AV74) -> -1154.68 | AX75: =SUM(AX66:AX74) -> -5242.45 | AY75: =SUM(AY66:AY74) -> -31299.5
A77: Taxes and Insurance
A78: 6720-0000 | B78: Insurance - Hazard and Liability | C78: 3167.04 | D78: 3167.04 | E78: 3167.04 | F78: 3209.13 | G78: 3469.51 | H78: 3295.98 | I78: 3295.98 | J78: 3295.98 | K78: 3295.98 | L78: 3295.98 | M78: 3295.98 | N78: 3295.98 | O78: 3295.98 | P78: 42547.6 | R78: 5 | S78: Pacolet | T78: 1226991 | V78: 19060 | W78: Pacolet | X78: 1226991 | Y78: Net Income|Net Operating Income|Operating Expenses|Taxes and Insurance | Z78: Net Income|Net Operating Income|Operating Expenses|Taxes and Insurance | AA78: 00000|00000|00001|00005 | AB78: Insurance - Hazard and Liability | AC78: 6720-0000 | AD78: 1 | AE78: 2569746 | AF78: 1 | AG78: 4|4|5|5 | AH78: 1 | AI78: 1 | AJ78: =IF(5 = R78, C78 * -1, C78) -> -3167.04 | AK78: =IF(5 = R78, D78 * -1, D78) -> -3167.04 | AL78: =IF(5 = R78, E78 * -1, E78) -> -3167.04 | AM78: =IF(5 = R78, F78 * -1, F78) -> -3209.13 | AN78: =IF(5 = R78, G78 * -1, G78) -> -3469.51 | AO78: =IF(5 = R78, H78 * -1, H78) -> -3295.98 | AP78: =IF(5 = R78, I78 * -1, I78) -> -3295.98 | AQ78: -3295.98 | AR78: =IF(5 = R78, J78 * -1, J78) -> -3295.98 | AS78: =IF(5 = R78, K78 * -1, K78) -> -3295.98 | AT78: =IF(5 = R78, L78 * -1, L78) -> -3295.98 | AU78: =IF(5 = R78, M78 * -1, M78) -> -3295.98 | AV78: =IF(5 = R78, N78 * -1, N78) -> -3295.98 | AW78: -3295.98 | AX78: =IF(5 = R78, O78 * -1, O78) -> -3295.98 | AY78: =IF(5 = R78, P78 * -1, P78) -> -42547.6
B79: Taxes and Insurance | C79: =IF(5 = R79, AJ79 * -1, AJ79) -> 3167.04 | D79: =IF(5 = R79, AK79 * -1, AK79) -> 3167.04 | E79: =IF(5 = R79, AL79 * -1, AL79) -> 3167.04 | F79: =IF(5 = R79, AM79 * -1, AM79) -> 3209.13 | G79: =IF(5 = R79, AN79 * -1, AN79) -> 3469.51 | H79: =IF(5 = R79, AO79 * -1, AO79) -> 3295.98 | I79: =IF(5 = R79, AP79 * -1, AP79) -> 3295.98 | J79: =IF(5 = R79, AR79 * -1, AR79) -> 3295.98 | K79: =IF(5 = R79, AS79 * -1, AS79) -> 3295.98 | L79: =IF(5 = R79, AT79 * -1, AT79) -> 3295.98 | M79: =IF(5 = R79, AU79 * -1, AU79) -> 3295.98 | N79: =IF(5 = R79, AV79 * -1, AV79) -> 3295.98 | O79: =IF(5 = R79, AX79 * -1, AX79) -> 3295.98 | P79: =IF(5 = R79, AY79 * -1, AY79) -> 42547.6 | R79: 5 | S79: =S78 -> Pacolet | T79: =T78 -> 1226991 | U79: =U78 -> 0 | AJ79: =SUM(AJ78:AJ78) -> -3167.04 | AK79: -3167.04 | AL79: -3167.04 | AM79: -3209.13 | AN79: -3469.51 | AO79: -3295.98 | AP79: -3295.98 | AR79: =SUM(AR78:AR78) -> -3295.98 | AS79: =SUM(AS78:AS78) -> -3295.98 | AT79: =SUM(AT78:AT78) -> -3295.98 | AU79: =SUM(AU78:AU78) -> -3295.98 | AV79: =SUM(AV78:AV78) -> -3295.98 | AX79: =SUM(AX78:AX78) -> -3295.98 | AY79: =SUM(AY78:AY78) -> -42547.6
A81: Unit Turnover Expense
A82: 6560-0000 | B82: Turnover - Blinds | C82: 0 | D82: 0 | E82: 0 | F82: 0 | G82: 0 | H82: 0 | I82: 0 | J82: 0 | K82: 0 | L82: 16 | M82: 22.5 | N82: 0 | O82: 0 | P82: 38.5 | R82: 5 | S82: Pacolet | T82: 1226991 | V82: 19060 | W82: Pacolet | X82: 1226991 | Y82: Net Income|Net Operating Income|Operating Expenses|Unit Turnover Expense | Z82: Net Income|Net Operating Income|Operating Expenses|Unit Turnover Expense | AA82: 00000|00000|00001|00006 | AB82: Turnover - Blinds | AC82: 6560-0000 | AD82: 1 | AE82: 2569738 | AF82: 0 | AG82: 4|4|5|5 | AH82: 0 | AI82: 0 | AJ82: =IF(5 = R82, C82 * -1, C82) -> 0 | AK82: =IF(5 = R82, D82 * -1, D82) -> 0 | AL82: =IF(5 = R82, E82 * -1, E82) -> 0 | AM82: =IF(5 = R82, F82 * -1, F82) -> 0 | AN82: =IF(5 = R82, G82 * -1, G82) -> 0 | AO82: =IF(5 = R82, H82 * -1, H82) -> 0 | AP82: =IF(5 = R82, I82 * -1, I82) -> 0 | AQ82: 0 | AR82: =IF(5 = R82, J82 * -1, J82) -> 0 | AS82: =IF(5 = R82, K82 * -1, K82) -> 0 | AT82: =IF(5 = R82, L82 * -1, L82) -> -16 | AU82: =IF(5 = R82, M82 * -1, M82) -> -22.5 | AV82: =IF(5 = R82, N82 * -1, N82) -> 0 | AW82: 0 | AX82: =IF(5 = R82, O82 * -1, O82) -> 0 | AY82: =IF(5 = R82, P82 * -1, P82) -> -38.5
A83: 6572-0000 | B83: Turnover - Resurfacing Fixtures/Tubs/Etc | C83: 0 | D83: 470 | E83: 0 | F83: 0 | G83: 0 | H83: 0 | I83: 0 | J83: 0 | K83: 47 | L83: 35 | M83: 35 | N83: 0 | O83: 0 | P83: 587 | R83: 5 | S83: Pacolet | T83: 1226991 | V83: 19060 | W83: Pacolet | X83: 1226991 | Y83: Net Income|Net Operating Income|Operating Expenses|Unit Turnover Expense | Z83: Net Income|Net Operating Income|Operating Expenses|Unit Turnover Expense | AA83: 00000|00000|00001|00006 | AB83: Turnover - Resurfacing Fixtures/Tubs/Etc | AC83: 6572-0000 | AD83: 1 | AE83: 2580515 | AF83: 2 | AG83: 4|4|5|5 | AH83: 0 | AI83: 0 | AJ83: 0 | AK83: -470 | AL83: 0 | AM83: 0 | AN83: 0 | AO83: 0 | AP83: 0 | AQ83: 0 | AR83: 0 | AS83: -47 | AT83: -35 | AU83: -35 | AV83: 0 | AW83: 0 | AX83: 0 | AY83: -587
A84: 6600-0000 | B84: Turnover - Labor | C84: 0 | D84: 200 | E84: 0 | F84: 0 | G84: 0 | H84: 150 | I84: 0 | J84: 200 | K84: 20 | L84: 315 | M84: 2.75 | N84: 0 | O84: 150 | P84: 1037.75 | R84: 5 | S84: Pacolet | T84: 1226991 | V84: 19060 | W84: Pacolet | X84: 1226991 | Y84: Net Income|Net Operating Income|Operating Expenses|Unit Turnover Expense | Z84: Net Income|Net Operating Income|Operating Expenses|Unit Turnover Expense | AA84: 00000|00000|00001|00006 | AB84: Turnover - Labor | AC84: 6600-0000 | AD84: 1 | AE84: 2581252 | AF84: 3 | AG84: 4|4|5|5 | AH84: 0 | AI84: 0 | AJ84: 0 | AK84: -200 | AL84: 0 | AM84: 0 | AN84: 0 | AO84: -150 | AP84: 0 | AQ84: -200 | AR84: -200 | AS84: -20 | AT84: -315 | AU84: -2.75 | AV84: 0 | AW84: -150 | AX84: -150 | AY84: -1037.75
A85: 6601-0000 | B85: Turnover - Supplies | C85: 0 | D85: 0 | E85: 0 | F85: 0 | G85: 0 | H85: 0 | I85: 0 | J85: 585 | K85: 145 | L85: -135 | M85: 0 | N85: 0 | O85: 0 | P85: 595 | R85: 5 | S85: Pacolet | T85: 1226991 | V85: 19060 | W85: Pacolet | X85: 1226991 | Y85: Net Income|Net Operating Income|Operating Expenses|Unit Turnover Expense | Z85: Net Income|Net Operating Income|Operating Expenses|Unit Turnover Expense | AA85: 00000|00000|00001|00006 | AB85: Turnover - Supplies | AC85: 6601-0000 | AD85: 1 | AE85: 2581401 | AF85: 4 | AG85: 4|4|5|5 | AH85: 0 | AI85: 0 | AJ85: 0 | AK85: 0 | AL85: 0 | AM85: 0 | AN85: 0 | AO85: 0 | AP85: 0 | AQ85: -585 | AR85: -585 | AS85: -145 | AT85: 135 | AU85: 0 | AV85: 0 | AW85: 0 | AX85: 0 | AY85: -595
A86: 6605-0000 | B86: Turnover - Painting Supplies | C86: 0 | D86: 0 | E86: 0 | F86: 0 | G86: 0 | H86: 0 | I86: 0 | J86: 125 | K86: 125 | L86: 125 | M86: 0 | N86: 0 | O86: 25 | P86: 400 | R86: 5 | S86: Pacolet | T86: 1226991 | V86: 19060 | W86: Pacolet | X86: 1226991 | Y86: Net Income|Net Operating Income|Operating Expenses|Unit Turnover Expense | Z86: Net Income|Net Operating Income|Operating Expenses|Unit Turnover Expense | AA86: 00000|00000|00001|00006 | AB86: Turnover - Painting Supplies | AC86: 6605-0000 | AD86: 1 | AE86: 2569741 | AF86: 5 | AG86: 4|4|5|5 | AH86: 0 | AI86: 0 | AJ86: 0 | AK86: 0 | AL86: 0 | AM86: 0 | AN86: 0 | AO86: 0 | AP86: 0 | AQ86: -125 | AR86: -125 | AS86: -125 | AT86: -125 | AU86: 0 | AV86: 0 | AW86: -25 | AX86: -25 | AY86: -400
A87: 6606-0000 | B87: Turnover - Painting Contract | C87: 400 | D87: 650 | E87: 0 | F87: 0 | G87: 0 | H87: 0 | I87: 0 | J87: 0 | K87: 65 | L87: 825.5 | M87: 188 | N87: 0 | O87: 277 | P87: 2405.5 | R87: 5 | S87: Pacolet | T87: 1226991 | V87: 19060 | W87: Pacolet | X87: 1226991 | Y87: Net Income|Net Operating Income|Operating Expenses|Unit Turnover Expense | Z87: Net Income|Net Operating Income|Operating Expenses|Unit Turnover Expense | AA87: 00000|00000|00001|00006 | AB87: Turnover - Painting Contract | AC87: 6606-0000 | AD87: 1 | AE87: 2569742 | AF87: 6 | AG87: 4|4|5|5 | AH87: 0 | AI87: 0 | AJ87: -400 | AK87: -650 | AL87: 0 | AM87: 0 | AN87: 0 | AO87: 0 | AP87: 0 | AQ87: 0 | AR87: 0 | AS87: -65 | AT87: -825.5 | AU87: -188 | AV87: 0 | AW87: -277 | AX87: -277 | AY87: -2405.5
A88: 6608-0000 | B88: Turnover - Cleaning Contract | C88: 0 | D88: 0 | E88: 465 | F88: 0 | G88: 180 | H88: 0 | I88: 0 | J88: 0 | K88: 0 | L88: 196.5 | M88: 0 | N88: 0 | O88: 18 | P88: 859.5 | R88: 5 | S88: Pacolet | T88: 1226991 | V88: 19060 | W88: Pacolet | X88: 1226991 | Y88: Net Income|Net Operating Income|Operating Expenses|Unit Turnover Expense | Z88: Net Income|Net Operating Income|Operating Expenses|Unit Turnover Expense | AA88: 00000|00000|00001|00006 | AB88: Turnover - Cleaning Contract | AC88: 6608-0000 | AD88: 1 | AE88: 2569743 | AF88: 7 | AG88: 4|4|5|5 | AH88: 0 | AI88: 0 | AJ88: 0 | AK88: 0 | AL88: -465 | AM88: 0 | AN88: -180 | AO88: 0 | AP88: 0 | AQ88: 0 | AR88: 0 | AS88: 0 | AT88: -196.5 | AU88: 0 | AV88: 0 | AW88: -18 | AX88: -18 | AY88: -859.5
B89: Unit Turnover Expense | C89: =IF(5 = R89, AJ89 * -1, AJ89) -> 400 | D89: =IF(5 = R89, AK89 * -1, AK89) -> 1320 | E89: =IF(5 = R89, AL89 * -1, AL89) -> 465 | F89: =IF(5 = R89, AM89 * -1, AM89) -> 0 | G89: =IF(5 = R89, AN89 * -1, AN89) -> 180 | H89: =IF(5 = R89, AO89 * -1, AO89) -> 150 | I89: =IF(5 = R89, AP89 * -1, AP89) -> 0 | J89: =IF(5 = R89, AR89 * -1, AR89) -> 910 | K89: =IF(5 = R89, AS89 * -1, AS89) -> 402 | L89: =IF(5 = R89, AT89 * -1, AT89) -> 1378 | M89: =IF(5 = R89, AU89 * -1, AU89) -> 248.25 | N89: =IF(5 = R89, AV89 * -1, AV89) -> 0 | O89: =IF(5 = R89, AX89 * -1, AX89) -> 470 | P89: =IF(5 = R89, AY89 * -1, AY89) -> 5923.25 | R89: 5 | S89: =S88 -> Pacolet | T89: =T88 -> 1226991 | U89: =U88 -> 0 | AJ89: =SUM(AJ82:AJ88) -> -400 | AK89: -1320 | AL89: -465 | AM89: 0 | AN89: -180 | AO89: -150 | AP89: 0 | AR89: =SUM(AR82:AR88) -> -910 | AS89: =SUM(AS82:AS88) -> -402 | AT89: =SUM(AT82:AT88) -> -1378 | AU89: =SUM(AU82:AU88) -> -248.25 | AV89: =SUM(AV82:AV88) -> 0 | AX89: =SUM(AX82:AX88) -> -470 | AY89: =SUM(AY82:AY88) -> -5923.25
B91: Operating Expenses | C91: =IF(5 = R91, AJ91 * -1, AJ91) -> 13560.36 | D91: =IF(5 = R91, AK91 * -1, AK91) -> 13281.2 | E91: =IF(5 = R91, AL91 * -1, AL91) -> 16096.33 | F91: =IF(5 = R91, AM91 * -1, AM91) -> 11589.97 | G91: =IF(5 = R91, AN91 * -1, AN91) -> 10487.94 | H91: =IF(5 = R91, AO91 * -1, AO91) -> 17171.66 | I91: =IF(5 = R91, AP91 * -1, AP91) -> 8879.2 | J91: =IF(5 = R91, AR91 * -1, AR91) -> 14062.6 | K91: =IF(5 = R91, AS91 * -1, AS91) -> 16533.25 | L91: =IF(5 = R91, AT91 * -1, AT91) -> 14161.8 | M91: =IF(5 = R91, AU91 * -1, AU91) -> 13074.63 | N91: =IF(5 = R91, AV91 * -1, AV91) -> 13546.42 | O91: =IF(5 = R91, AX91 * -1, AX91) -> 19576.43 | P91: =IF(5 = R91, AY91 * -1, AY91) -> 182021.79 | R91: 5 | S91: =S88 -> Pacolet | T91: =T88 -> 1226991 | U91: =U88 -> 0 | AJ91: =SUM(AJ39:AJ43)+SUM(AJ47:AJ49)+SUM(AJ53:AJ53)+SUM(AJ57:AJ62)+SUM(AJ66:AJ74)+SUM(AJ78:AJ78)+SUM(AJ82:AJ88) -> -13560.36 | AK91: -13281.2 | AL91: -16096.33 | AM91: -11589.97 | AN91: -10487.94 | AO91: -17171.66 | AP91: -8879.2 | AR91: =SUM(AR39:AR43)+SUM(AR47:AR49)+SUM(AR53:AR53)+SUM(AR57:AR62)+SUM(AR66:AR74)+SUM(AR78:AR78)+SUM(AR82:AR88) -> -14062.6 | AS91: =SUM(AS39:AS43)+SUM(AS47:AS49)+SUM(AS53:AS53)+SUM(AS57:AS62)+SUM(AS66:AS74)+SUM(AS78:AS78)+SUM(AS82:AS88) -> -16533.25 | AT91: =SUM(AT39:AT43)+SUM(AT47:AT49)+SUM(AT53:AT53)+SUM(AT57:AT62)+SUM(AT66:AT74)+SUM(AT78:AT78)+SUM(AT82:AT88) -> -14161.8 | AU91: =SUM(AU39:AU43)+SUM(AU47:AU49)+SUM(AU53:AU53)+SUM(AU57:AU62)+SUM(AU66:AU74)+SUM(AU78:AU78)+SUM(AU82:AU88) -> -13074.63 | AV91: =SUM(AV39:AV43)+SUM(AV47:AV49)+SUM(AV53:AV53)+SUM(AV57:AV62)+SUM(AV66:AV74)+SUM(AV78:AV78)+SUM(AV82:AV88) -> -13546.42 | AX91: =SUM(AX39:AX43)+SUM(AX47:AX49)+SUM(AX53:AX53)+SUM(AX57:AX62)+SUM(AX66:AX74)+SUM(AX78:AX78)+SUM(AX82:AX88) -> -19576.43 | AY91: =SUM(AY39:AY43)+SUM(AY47:AY49)+SUM(AY53:AY53)+SUM(AY57:AY62)+SUM(AY66:AY74)+SUM(AY78:AY78)+SUM(AY82:AY88) -> -182021.79
B93: Net Operating Income | C93: =IF(5 = R93, AJ93 * -1, AJ93) -> 13999.7 | D93: =IF(5 = R93, AK93 * -1, AK93) -> 13686.27 | E93: =IF(5 = R93, AL93 * -1, AL93) -> 7150.85 | F93: =IF(5 = R93, AM93 * -1, AM93) -> 15011.8 | G93: =IF(5 = R93, AN93 * -1, AN93) -> 20154.98 | H93: =IF(5 = R93, AO93 * -1, AO93) -> 7743.92 | I93: =IF(5 = R93, AP93 * -1, AP93) -> 23943.5 | J93: =IF(5 = R93, AR93 * -1, AR93) -> 14167.57 | K93: =IF(5 = R93, AS93 * -1, AS93) -> 11091.04 | L93: =IF(5 = R93, AT93 * -1, AT93) -> 20224.38 | M93: =IF(5 = R93, AU93 * -1, AU93) -> 16129.73 | N93: =IF(5 = R93, AV93 * -1, AV93) -> 16839.12 | O93: =IF(5 = R93, AX93 * -1, AX93) -> 6430.34 | P93: =IF(5 = R93, AY93 * -1, AY93) -> 186573.2 | R93: 4 | S93: =S88 -> Pacolet | T93: =T88 -> 1226991 | U93: =U88 -> 0 | AJ93: =SUM(AJ10:AJ10)+SUM(AJ14:AJ32)+SUM(AJ39:AJ43)+SUM(AJ47:AJ49)+SUM(AJ53:AJ53)+SUM(AJ57:AJ62)+SUM(AJ66:AJ74)+SUM(AJ78:AJ78)+SUM(AJ82:AJ88) -> 13999.7 | AK93: 13686.27 | AL93: 7150.85 | AM93: 15011.8 | AN93: 20154.98 | AO93: 7743.92 | AP93: 23943.5 | AR93: =SUM(AR10:AR10)+SUM(AR14:AR32)+SUM(AR39:AR43)+SUM(AR47:AR49)+SUM(AR53:AR53)+SUM(AR57:AR62)+SUM(AR66:AR74)+SUM(AR78:AR78)+SUM(AR82:AR88) -> 14167.57 | AS93: =SUM(AS10:AS10)+SUM(AS14:AS32)+SUM(AS39:AS43)+SUM(AS47:AS49)+SUM(AS53:AS53)+SUM(AS57:AS62)+SUM(AS66:AS74)+SUM(AS78:AS78)+SUM(AS82:AS88) -> 11091.04 | AT93: =SUM(AT10:AT10)+SUM(AT14:AT32)+SUM(AT39:AT43)+SUM(AT47:AT49)+SUM(AT53:AT53)+SUM(AT57:AT62)+SUM(AT66:AT74)+SUM(AT78:AT78)+SUM(AT82:AT88) -> 20224.38 | AU93: =SUM(AU10:AU10)+SUM(AU14:AU32)+SUM(AU39:AU43)+SUM(AU47:AU49)+SUM(AU53:AU53)+SUM(AU57:AU62)+SUM(AU66:AU74)+SUM(AU78:AU78)+SUM(AU82:AU88) -> 16129.73 | AV93: =SUM(AV10:AV10)+SUM(AV14:AV32)+SUM(AV39:AV43)+SUM(AV47:AV49)+SUM(AV53:AV53)+SUM(AV57:AV62)+SUM(AV66:AV74)+SUM(AV78:AV78)+SUM(AV82:AV88) -> 16839.12 | AX93: =SUM(AX10:AX10)+SUM(AX14:AX32)+SUM(AX39:AX43)+SUM(AX47:AX49)+SUM(AX53:AX53)+SUM(AX57:AX62)+SUM(AX66:AX74)+SUM(AX78:AX78)+SUM(AX82:AX88) -> 6430.34 | AY93: =SUM(AY10:AY10)+SUM(AY14:AY32)+SUM(AY39:AY43)+SUM(AY47:AY49)+SUM(AY53:AY53)+SUM(AY57:AY62)+SUM(AY66:AY74)+SUM(AY78:AY78)+SUM(AY82:AY88) -> 186573.2
A95: Non-operating Expenses
A96: Financial Expense
A97: 6820-0000 | B97: Mortgage Interest | C97: 6826.79 | D97: 6864.56 | E97: 6562.4 | F97: 6904.43 | G97: 6904.43 | H97: 8965.19 | I97: 6904.43 | J97: 6904.43 | K97: 6904.43 | L97: 6904.43 | M97: 6904.43 | N97: 6904.43 | O97: 6904.43 | P97: 91358.81 | R97: 5 | S97: Pacolet | T97: 1226991 | V97: 19060 | W97: Pacolet | X97: 1226991 | Y97: Net Income|Non-operating Expenses|Financial Expense | Z97: Net Income|Non-operating Expenses|Financial Expense | AA97: 00000|00001|00000 | AB97: Mortgage Interest | AC97: 6820-0000 | AD97: 1 | AE97: 2569747 | AF97: 0 | AG97: 4|5|5 | AH97: 1 | AI97: 1 | AJ97: =IF(5 = R97, C97 * -1, C97) -> -6826.79 | AK97: =IF(5 = R97, D97 * -1, D97) -> -6864.56 | AL97: =IF(5 = R97, E97 * -1, E97) -> -6562.4 | AM97: =IF(5 = R97, F97 * -1, F97) -> -6904.43 | AN97: =IF(5 = R97, G97 * -1, G97) -> -6904.43 | AO97: =IF(5 = R97, H97 * -1, H97) -> -8965.19 | AP97: =IF(5 = R97, I97 * -1, I97) -> -6904.43 | AQ97: -6904.43 | AR97: =IF(5 = R97, J97 * -1, J97) -> -6904.43 | AS97: =IF(5 = R97, K97 * -1, K97) -> -6904.43 | AT97: =IF(5 = R97, L97 * -1, L97) -> -6904.43 | AU97: =IF(5 = R97, M97 * -1, M97) -> -6904.43 | AV97: =IF(5 = R97, N97 * -1, N97) -> -6904.43 | AW97: -6904.43 | AX97: =IF(5 = R97, O97 * -1, O97) -> -6904.43 | AY97: =IF(5 = R97, P97 * -1, P97) -> -91358.81
A98: 6870-1000 | B98: Professional Fees | C98: 0 | D98: 0 | E98: 0 | F98: 0 | G98: 0 | H98: 0 | I98: 0 | J98: 0 | K98: 9625 | L98: 319.45 | M98: 0 | N98: 0 | O98: 0 | P98: 9944.45 | R98: 5 | S98: Pacolet | T98: 1226991 | V98: 19060 | W98: Pacolet | X98: 1226991 | Y98: Net Income|Non-operating Expenses|Financial Expense | Z98: Net Income|Non-operating Expenses|Financial Expense | AA98: 00000|00001|00000 | AB98: Professional Fees | AC98: 6870-1000 | AD98: 1 | AE98: 2581434 | AF98: 2 | AG98: 4|5|5 | AH98: 0 | AI98: 0 | AJ98: =IF(5 = R98, C98 * -1, C98) -> 0 | AK98: =IF(5 = R98, D98 * -1, D98) -> 0 | AL98: =IF(5 = R98, E98 * -1, E98) -> 0 | AM98: =IF(5 = R98, F98 * -1, F98) -> 0 | AN98: =IF(5 = R98, G98 * -1, G98) -> 0 | AO98: =IF(5 = R98, H98 * -1, H98) -> 0 | AP98: =IF(5 = R98, I98 * -1, I98) -> 0 | AQ98: 0 | AR98: =IF(5 = R98, J98 * -1, J98) -> 0 | AS98: =IF(5 = R98, K98 * -1, K98) -> -9625 | AT98: =IF(5 = R98, L98 * -1, L98) -> -319.45 | AU98: =IF(5 = R98, M98 * -1, M98) -> 0 | AV98: =IF(5 = R98, N98 * -1, N98) -> 0 | AW98: 0 | AX98: =IF(5 = R98, O98 * -1, O98) -> 0 | AY98: =IF(5 = R98, P98 * -1, P98) -> -9944.45
A99: 6840-0000 | B99: Asset Management Fee | C99: 490.3 | D99: 0 | E99: 0 | F99: 551.2 | G99: 539.35 | H99: 0 | I99: 463.24 | J99: 0 | K99: 616.75 | L99: 532.04 | M99: 0 | N99: 0 | O99: 0 | P99: 3192.88 | R99: 5 | S99: Pacolet | T99: 1226991 | V99: 19060 | W99: Pacolet | X99: 1226991 | Y99: Net Income|Non-operating Expenses|Financial Expense | Z99: Net Income|Non-operating Expenses|Financial Expense | AA99: 00000|00001|00000 | AB99: Asset Management Fee | AC99: 6840-0000 | AD99: 1 | AE99: 2569748 | AF99: 5 | AG99: 4|5|5 | AH99: 1 | AI99: 0 | AJ99: =IF(5 = R99, C99 * -1, C99) -> -490.3 | AK99: =IF(5 = R99, D99 * -1, D99) -> 0 | AL99: =IF(5 = R99, E99 * -1, E99) -> 0 | AM99: =IF(5 = R99, F99 * -1, F99) -> -551.2 | AN99: =IF(5 = R99, G99 * -1, G99) -> -539.35 | AO99: =IF(5 = R99, H99 * -1, H99) -> 0 | AP99: =IF(5 = R99, I99 * -1, I99) -> -463.24 | AQ99: 0 | AR99: =IF(5 = R99, J99 * -1, J99) -> 0 | AS99: =IF(5 = R99, K99 * -1, K99) -> -616.75 | AT99: =IF(5 = R99, L99 * -1, L99) -> -532.04 | AU99: =IF(5 = R99, M99 * -1, M99) -> 0 | AV99: =IF(5 = R99, N99 * -1, N99) -> 0 | AW99: 0 | AX99: =IF(5 = R99, O99 * -1, O99) -> 0 | AY99: =IF(5 = R99, P99 * -1, P99) -> -3192.88
B100: Financial Expense | C100: =IF(5 = R100, AJ100 * -1, AJ100) -> 7317.09 | D100: =IF(5 = R100, AK100 * -1, AK100) -> 6864.56 | E100: =IF(5 = R100, AL100 * -1, AL100) -> 6562.4 | F100: =IF(5 = R100, AM100 * -1, AM100) -> 7455.63 | G100: =IF(5 = R100, AN100 * -1, AN100) -> 7443.78 | H100: =IF(5 = R100, AO100 * -1, AO100) -> 8965.19 | I100: =IF(5 = R100, AP100 * -1, AP100) -> 7367.67 | J100: =IF(5 = R100, AR100 * -1, AR100) -> 6904.43 | K100: =IF(5 = R100, AS100 * -1, AS100) -> 17146.18 | L100: =IF(5 = R100, AT100 * -1, AT100) -> 7755.92 | M100: =IF(5 = R100, AU100 * -1, AU100) -> 6904.43 | N100: =IF(5 = R100, AV100 * -1, AV100) -> 6904.43 | O100: =IF(5 = R100, AX100 * -1, AX100) -> 6904.43 | P100: =IF(5 = R100, AY100 * -1, AY100) -> 104496.14 | R100: 5 | S100: =S99 -> Pacolet | T100: =T99 -> 1226991 | U100: =U99 -> 0 | AJ100: =SUM(AJ97:AJ99) -> -7317.09 | AK100: -6864.56 | AL100: -6562.4 | AM100: -7455.63 | AN100: -7443.78 | AO100: -8965.19 | AP100: -7367.67 | AR100: =SUM(AR97:AR99) -> -6904.43 | AS100: =SUM(AS97:AS99) -> -17146.18 | AT100: =SUM(AT97:AT99) -> -7755.92 | AU100: =SUM(AU97:AU99) -> -6904.43 | AV100: =SUM(AV97:AV99) -> -6904.43 | AX100: =SUM(AX97:AX99) -> -6904.43 | AY100: =SUM(AY97:AY99) -> -104496.14
A102: Capital and Repl Reserve Expense
A103: 7152-0000 | B103: Capital - Carpet and Vinyl | C103: 0 | D103: 0 | E103: 2200 | F103: 0 | G103: 0 | H103: 0 | I103: 0 | J103: 0 | K103: 0 | L103: 220 | M103: 0 | N103: 0 | O103: 0 | P103: 2420 | R103: 5 | S103: Pacolet | T103: 1226991 | V103: 19060 | W103: Pacolet | X103: 1226991 | Y103: Net Income|Non-operating Expenses|Capital and Repl Reserve Expense | Z103: Net Income|Non-operating Expenses|Capital and Repl Reserve Expense | AA103: 00000|00001|00001 | AB103: Capital - Carpet and Vinyl | AC103: 7152-0000 | AD103: 1 | AE103: 2569750 | AF103: 2 | AG103: 4|5|5 | AH103: 0 | AI103: 0 | AJ103: =IF(5 = R103, C103 * -1, C103) -> 0 | AK103: =IF(5 = R103, D103 * -1, D103) -> 0 | AL103: =IF(5 = R103, E103 * -1, E103) -> -2200 | AM103: =IF(5 = R103, F103 * -1, F103) -> 0 | AN103: =IF(5 = R103, G103 * -1, G103) -> 0 | AO103: =IF(5 = R103, H103 * -1, H103) -> 0 | AP103: =IF(5 = R103, I103 * -1, I103) -> 0 | AQ103: 0 | AR103: =IF(5 = R103, J103 * -1, J103) -> 0 | AS103: =IF(5 = R103, K103 * -1, K103) -> 0 | AT103: =IF(5 = R103, L103 * -1, L103) -> -220 | AU103: =IF(5 = R103, M103 * -1, M103) -> 0 | AV103: =IF(5 = R103, N103 * -1, N103) -> 0 | AW103: 0 | AX103: =IF(5 = R103, O103 * -1, O103) -> 0 | AY103: =IF(5 = R103, P103 * -1, P103) -> -2420
A104: 7161-0000 | B104: Capital - Appliances | C104: 2707.07 | D104: 0 | E104: 0 | F104: 0 | G104: 0 | H104: 0 | I104: 0 | J104: 0 | K104: 0 | L104: 0 | M104: 0 | N104: 0 | O104: 0 | P104: 2707.07 | R104: 5 | S104: Pacolet | T104: 1226991 | V104: 19060 | W104: Pacolet | X104: 1226991 | Y104: Net Income|Non-operating Expenses|Capital and Repl Reserve Expense | Z104: Net Income|Non-operating Expenses|Capital and Repl Reserve Expense | AA104: 00000|00001|00001 | AB104: Capital - Appliances | AC104: 7161-0000 | AD104: 1 | AE104: 2569753 | AF104: 5 | AG104: 4|5|5 | AH104: 0 | AI104: 0 | AJ104: -2707.07 | AK104: 0 | AL104: 0 | AM104: 0 | AN104: 0 | AO104: 0 | AP104: 0 | AQ104: 0 | AR104: 0 | AS104: 0 | AT104: 0 | AU104: 0 | AV104: 0 | AW104: 0 | AX104: 0 | AY104: -2707.07
A105: 7166-0000 | B105: Capital - Plumbing | C105: 400 | D105: 138.4 | E105: 350 | F105: 630 | G105: 0 | H105: 0 | I105: 0 | J105: 0 | K105: 700 | L105: 0 | M105: 0 | N105: 0 | O105: 0 | P105: 2218.4 | R105: 5 | S105: Pacolet | T105: 1226991 | V105: 19060 | W105: Pacolet | X105: 1226991 | Y105: Net Income|Non-operating Expenses|Capital and Repl Reserve Expense | Z105: Net Income|Non-operating Expenses|Capital and Repl Reserve Expense | AA105: 00000|00001|00001 | AB105: Capital - Plumbing | AC105: 7166-0000 | AD105: 1 | AE105: 2580239 | AF105: 12 | AG105: 4|5|5 | AH105: 0 | AI105: 0 | AJ105: -400 | AK105: -138.4 | AL105: -350 | AM105: -630 | AN105: 0 | AO105: 0 | AP105: 0 | AQ105: 0 | AR105: 0 | AS105: -700 | AT105: 0 | AU105: 0 | AV105: 0 | AW105: 0 | AX105: 0 | AY105: -2218.4
A106: 7167-0000 | B106: Capital - Exterior | C106: 0 | D106: 139.5 | E106: 0 | F106: 0 | G106: 0 | H106: 0 | I106: 0 | J106: 0 | K106: 0 | L106: 0 | M106: 0 | N106: 0 | O106: 0 | P106: 139.5 | R106: 5 | S106: Pacolet | T106: 1226991 | V106: 19060 | W106: Pacolet | X106: 1226991 | Y106: Net Income|Non-operating Expenses|Capital and Repl Reserve Expense | Z106: Net Income|Non-operating Expenses|Capital and Repl Reserve Expense | AA106: 00000|00001|00001 | AB106: Capital - Exterior | AC106: 7167-0000 | AD106: 1 | AE106: 2580272 | AF106: 13 | AG106: 4|5|5 | AH106: 0 | AI106: 0 | AJ106: 0 | AK106: -139.5 | AL106: 0 | AM106: 0 | AN106: 0 | AO106: 0 | AP106: 0 | AQ106: 0 | AR106: 0 | AS106: 0 | AT106: 0 | AU106: 0 | AV106: 0 | AW106: 0 | AX106: 0 | AY106: -139.5
A107: 7172-0000 | B107: Capital - Interior Improvement | C107: 2557.5 | D107: 4808.64 | E107: 2965 | F107: 1600 | G107: 2594.63 | H107: 290 | I107: 850 | J107: 3758.4 | K107: 5055 | L107: 4867.5 | M107: 0 | N107: 0 | O107: 131.02 | P107: 29477.69 | R107: 5 | S107: Pacolet | T107: 1226991 | V107: 19060 | W107: Pacolet | X107: 1226991 | Y107: Net Income|Non-operating Expenses|Capital and Repl Reserve Expense | Z107: Net Income|Non-operating Expenses|Capital and Repl Reserve Expense | AA107: 00000|00001|00001 | AB107: Capital - Interior Improvement | AC107: 7172-0000 | AD107: 1 | AE107: 2569757 | AF107: 18 | AG107: 4|5|5 | AH107: 1 | AI107: 0 | AJ107: -2557.5 | AK107: -4808.64 | AL107: -2965 | AM107: -1600 | AN107: -2594.63 | AO107: -290 | AP107: -850 | AQ107: -3758.4 | AR107: -3758.4 | AS107: -5055 | AT107: -4867.5 | AU107: 0 | AV107: 0 | AW107: -131.02 | AX107: -131.02 | AY107: -29477.69
A108: 7173-0000 | B108: Capital - Miscellaneous | C108: 0 | D108: 7700 | E108: 0 | F108: 0 | G108: 0 | H108: 0 | I108: 0 | J108: 0 | K108: 0 | L108: 0 | M108: 0 | N108: 0 | O108: 0 | P108: 7700 | R108: 5 | S108: Pacolet | T108: 1226991 | V108: 19060 | W108: Pacolet | X108: 1226991 | Y108: Net Income|Non-operating Expenses|Capital and Repl Reserve Expense | Z108: Net Income|Non-operating Expenses|Capital and Repl Reserve Expense | AA108: 00000|00001|00001 | AB108: Capital - Miscellaneous | AC108: 7173-0000 | AD108: 1 | AE108: 2569758 | AF108: 24 | AG108: 4|5|5 | AH108: 0 | AI108: 0 | AJ108: 0 | AK108: -7700 | AL108: 0 | AM108: 0 | AN108: 0 | AO108: 0 | AP108: 0 | AQ108: 0 | AR108: 0 | AS108: 0 | AT108: 0 | AU108: 0 | AV108: 0 | AW108: 0 | AX108: 0 | AY108: -7700
B109: Capital and Repl Reserve Expense | C109: =IF(5 = R109, AJ109 * -1, AJ109) -> 5664.57 | D109: =IF(5 = R109, AK109 * -1, AK109) -> 12786.54 | E109: =IF(5 = R109, AL109 * -1, AL109) -> 5515 | F109: =IF(5 = R109, AM109 * -1, AM109) -> 2230 | G109: =IF(5 = R109, AN109 * -1, AN109) -> 2594.63 | H109: =IF(5 = R109, AO109 * -1, AO109) -> 290 | I109: =IF(5 = R109, AP109 * -1, AP109) -> 850 | J109: =IF(5 = R109, AR109 * -1, AR109) -> 3758.4 | K109: =IF(5 = R109, AS109 * -1, AS109) -> 5755 | L109: =IF(5 = R109, AT109 * -1, AT109) -> 5087.5 | M109: =IF(5 = R109, AU109 * -1, AU109) -> 0 | N109: =IF(5 = R109, AV109 * -1, AV109) -> 0 | O109: =IF(5 = R109, AX109 * -1, AX109) -> 131.02 | P109: =IF(5 = R109, AY109 * -1, AY109) -> 44662.66 | R109: 5 | S109: =S108 -> Pacolet | T109: =T108 -> 1226991 | U109: =U108 -> 0 | AJ109: =SUM(AJ103:AJ108) -> -5664.57 | AK109: -12786.54 | AL109: -5515 | AM109: -2230 | AN109: -2594.63 | AO109: -290 | AP109: -850 | AR109: =SUM(AR103:AR108) -> -3758.4 | AS109: =SUM(AS103:AS108) -> -5755 | AT109: =SUM(AT103:AT108) -> -5087.5 | AU109: =SUM(AU103:AU108) -> 0 | AV109: =SUM(AV103:AV108) -> 0 | AX109: =SUM(AX103:AX108) -> -131.02 | AY109: =SUM(AY103:AY108) -> -44662.66
B111: Non-operating Expenses | C111: =IF(5 = R111, AJ111 * -1, AJ111) -> 12981.66 | D111: =IF(5 = R111, AK111 * -1, AK111) -> 19651.1 | E111: =IF(5 = R111, AL111 * -1, AL111) -> 12077.4 | F111: =IF(5 = R111, AM111 * -1, AM111) -> 9685.63 | G111: =IF(5 = R111, AN111 * -1, AN111) -> 10038.41 | H111: =IF(5 = R111, AO111 * -1, AO111) -> 9255.19 | I111: =IF(5 = R111, AP111 * -1, AP111) -> 8217.67 | J111: =IF(5 = R111, AR111 * -1, AR111) -> 10662.83 | K111: =IF(5 = R111, AS111 * -1, AS111) -> 22901.18 | L111: =IF(5 = R111, AT111 * -1, AT111) -> 12843.42 | M111: =IF(5 = R111, AU111 * -1, AU111) -> 6904.43 | N111: =IF(5 = R111, AV111 * -1, AV111) -> 6904.43 | O111: =IF(5 = R111, AX111 * -1, AX111) -> 7035.45 | P111: =IF(5 = R111, AY111 * -1, AY111) -> 149158.8 | R111: 5 | S111: =S108 -> Pacolet | T111: =T108 -> 1226991 | U111: =U108 -> 0 | AJ111: =SUM(AJ97:AJ99)+SUM(AJ103:AJ108) -> -12981.66 | AK111: -19651.1 | AL111: -12077.4 | AM111: -9685.63 | AN111: -10038.41 | AO111: -9255.19 | AP111: -8217.67 | AR111: =SUM(AR97:AR99)+SUM(AR103:AR108) -> -10662.83 | AS111: =SUM(AS97:AS99)+SUM(AS103:AS108) -> -22901.18 | AT111: =SUM(AT97:AT99)+SUM(AT103:AT108) -> -12843.42 | AU111: =SUM(AU97:AU99)+SUM(AU103:AU108) -> -6904.43 | AV111: =SUM(AV97:AV99)+SUM(AV103:AV108) -> -6904.43 | AX111: =SUM(AX97:AX99)+SUM(AX103:AX108) -> -7035.45 | AY111: =SUM(AY97:AY99)+SUM(AY103:AY108) -> -149158.8
B113: Net Income | C113: =IF(5 = R113, AJ113 * -1, AJ113) -> 1018.04 | D113: =IF(5 = R113, AK113 * -1, AK113) -> -5964.83 | E113: =IF(5 = R113, AL113 * -1, AL113) -> -4926.55 | F113: =IF(5 = R113, AM113 * -1, AM113) -> 5326.17 | G113: =IF(5 = R113, AN113 * -1, AN113) -> 10116.57 | H113: =IF(5 = R113, AO113 * -1, AO113) -> -1511.27 | I113: =IF(5 = R113, AP113 * -1, AP113) -> 15725.83 | J113: =IF(5 = R113, AR113 * -1, AR113) -> 3504.74 | K113: =IF(5 = R113, AS113 * -1, AS113) -> -11810.14 | L113: =IF(5 = R113, AT113 * -1, AT113) -> 7380.96 | M113: =IF(5 = R113, AU113 * -1, AU113) -> 9225.3 | N113: =IF(5 = R113, AV113 * -1, AV113) -> 9934.69 | O113: =IF(5 = R113, AX113 * -1, AX113) -> -605.11 | P113: =IF(5 = R113, AY113 * -1, AY113) -> 37414.4 | R113: 4 | S113: =S108 -> Pacolet | T113: =T108 -> 1226991 | U113: =U108 -> 0 | AJ113: =SUM(AJ10:AJ10)+SUM(AJ14:AJ32)+SUM(AJ39:AJ43)+SUM(AJ47:AJ49)+SUM(AJ53:AJ53)+SUM(AJ57:AJ62)+SUM(AJ66:AJ74)+SUM(AJ78:AJ78)+SUM(AJ82:AJ88)+SUM(AJ97:AJ99)+SUM(AJ103:AJ108) -> 1018.04 | AK113: -5964.83 | AL113: -4926.55 | AM113: 5326.17 | AN113: 10116.57 | AO113: -1511.27 | AP113: 15725.83 | AR113: =SUM(AR10:AR10)+SUM(AR14:AR32)+SUM(AR39:AR43)+SUM(AR47:AR49)+SUM(AR53:AR53)+SUM(AR57:AR62)+SUM(AR66:AR74)+SUM(AR78:AR78)+SUM(AR82:AR88)+SUM(AR97:AR99)+SUM(AR103:AR108) -> 3504.74 | AS113: =SUM(AS10:AS10)+SUM(AS14:AS32)+SUM(AS39:AS43)+SUM(AS47:AS49)+SUM(AS53:AS53)+SUM(AS57:AS62)+SUM(AS66:AS74)+SUM(AS78:AS78)+SUM(AS82:AS88)+SUM(AS97:AS99)+SUM(AS103:AS108) -> -11810.14 | AT113: =SUM(AT10:AT10)+SUM(AT14:AT32)+SUM(AT39:AT43)+SUM(AT47:AT49)+SUM(AT53:AT53)+SUM(AT57:AT62)+SUM(AT66:AT74)+SUM(AT78:AT78)+SUM(AT82:AT88)+SUM(AT97:AT99)+SUM(AT103:AT108) -> 7380.96 | AU113: =SUM(AU10:AU10)+SUM(AU14:AU32)+SUM(AU39:AU43)+SUM(AU47:AU49)+SUM(AU53:AU53)+SUM(AU57:AU62)+SUM(AU66:AU74)+SUM(AU78:AU78)+SUM(AU82:AU88)+SUM(AU97:AU99)+SUM(AU103:AU108) -> 9225.3 | AV113: =SUM(AV10:AV10)+SUM(AV14:AV32)+SUM(AV39:AV43)+SUM(AV47:AV49)+SUM(AV53:AV53)+SUM(AV57:AV62)+SUM(AV66:AV74)+SUM(AV78:AV78)+SUM(AV82:AV88)+SUM(AV97:AV99)+SUM(AV103:AV108) -> 9934.69 | AX113: =SUM(AX10:AX10)+SUM(AX14:AX32)+SUM(AX39:AX43)+SUM(AX47:AX49)+SUM(AX53:AX53)+SUM(AX57:AX62)+SUM(AX66:AX74)+SUM(AX78:AX78)+SUM(AX82:AX88)+SUM(AX97:AX99)+SUM(AX103:AX108) -> -605.11 | AY113: =SUM(AY10:AY10)+SUM(AY14:AY32)+SUM(AY39:AY43)+SUM(AY47:AY49)+SUM(AY53:AY53)+SUM(AY57:AY62)+SUM(AY66:AY74)+SUM(AY78:AY78)+SUM(AY82:AY88)+SUM(AY97:AY99)+SUM(AY103:AY108) -> 37414.4

Sheet Report Parameters
A1: Income Statement
A2: Report Parameters
A4: Report Name | B4: Income Statement
A5: Version | B5: 4.1
A6: Property Groups | B6: Pacolet
A7: Chart of Accounts or Mask | B7: Master GL Tree
A8: Accounting Method | B8: Cash
A9: Location Type | B9: Property
A10: Period | B10: Prior Post Month
A11: Use Alternative Year End | B11: No
A12: Trailing Periods | B12: 12
A13: Expand By Period | B13: Month
A14: GL Account Numbers | B14: Show
A15: Show Periods From | B15: Oldest To Newest
A16: Consolidate By | B16: Do Not Consolidate
A17: Accounting Method Exception | B17: No Exception
A18: Show Occupancy Percentages | B18: No
A19: Zero Balances | B19: Hide
A20: Net Cash Flow Groups | B20: Hide
A21: Beginning/Ending Cash Balances | B21: Hide
A22: Beginning/Ending Cash Balances Details | B22: Hide
A23: Year-To-Date | B23: Hide
A24: Include Paused Journal Entries | B24: No
A25: Compare Periods | B25: No
A26: Compare Against | B26: Prior Period
A27: % of Income | B27: Hide
A28: Expand by GL Book | B28: No
A30: Income Statement 4.1 generated | B30: 09/29/2025 09:52 AM EDT
A31: data as of | B31: 09/29/2025 09:52 AM EDT
